Workbook

Sheet Post Code Calculator
P1: =IF(B4<=H2,2,IF(AND(B4>H2,B4<=I2),3,IF(AND(B4>I2,B4<=J2),4,IF(AND(B4>J2,B4<=K2),5,IF(AND(B4>K2,B4<=L2),6,IF(AND(B4>L2,B4<=M2),7,"N/A")))))) -> 2 | R1: Rating | S1: Type | T1: Product
A2: Input Post Code | C2: Funder Rating | D2: =IF(OR(B2=3308,B2=4184,B2=6701),"Not Acceptable Postcode",IF(_xlfn.XLOOKUP('Post Code Calculator'!B2,'Post Code data'!A:A,'Post Code data'!O:O,"",0,1)="","",_xlfn.XLOOKUP('Post Code Calculator'!B2,'Post Code data'!A:A,'Post Code data'!O:O,"",0,1))) ->  | G2: Products - Max LVR | H2: 0.6 | I2: 0.7 | J2: 0.75 | K2: 0.8 | L2: 0.9 | M2: 0.95 | N2: Comments | R2: High Density | S2: House/Townhouse/Unit | T2: Residential - Owner OCC (metro) | U2: High Density
A3: Select type of security | C3: Geographic Region | D3: =IF(OR(B2=3308,B2=4184,B2=6701),"Not Acceptable Postcode",IF(_xlfn.XLOOKUP(B2,'Post Code data'!A:A,'Post Code data'!E:E,"",0,1)="","",_xlfn.XLOOKUP(B2,'Post Code data'!A:A,'Post Code data'!E:E,"",0,1))) ->  | G3: Residential - Owner OCC (metro) | H3: 0.6 | I3: 0.7 | J3: 0.75 | K3: 0.8 | L3: =IF($D$2="High Density","N/A",L66) -> 0.9 | M3: =IF($D$2="High Density","N/A",M66) -> 95% | N3: =IF($B$4>80%,"Approval is subject to LMI","") ->  | O3: =MAX(IFERROR(_xlfn.NUMBERVALUE(H3:M3),0)) -> 0.95 | R3: High Density | S3: House/Townhouse/Unit | T3: Residential - Investment (metro) | U3: Metro
A4: Requested LVR | G4: Residential - Investment (metro) | H4: 0.6 | I4: 0.7 | J4: 0.75 | K4: 0.8 | L4: =IF($D$2="High Density","N/A",L67) -> 0.9 | M4: 95% | N4: =IF($B$4>80%,"Approval is subject to LMI","") ->  | O4: =MAX(IFERROR(_xlfn.NUMBERVALUE(H4:M4),0)) -> 0.95 | R4: High Density | S4: House/Townhouse/Unit | T4: Residential - Non Coded | U4: Non Metro
G5: Residential - Owner Occ (Non Metro) | H5: 0.6 | I5: 0.7 | J5: 0.75 | K5: 0.8 | L5: 0.9 | M5: 95% | N5: =IF($B$4>80%,"Approval is subject to LMI","") ->  | O5: =MAX(IFERROR(_xlfn.NUMBERVALUE(H5:M5),0)) -> 0.95 | R5: High Density | S5: House/Townhouse/Unit | T5: Residential - Non Conforming Full/Alt Doc | U5: Regional
A6: Available Products | B6: Max LVR | C6: Requested LVR and pricing band | D6: Max Loan Amount within LVR Band | E6: Funder Comments | G6: Residential - Investment (Non Metro) | H6: 0.6 | I6: 0.7 | J6: 0.75 | K6: 0.8 | L6: 0.9 | M6: 95% | N6: =IF($B$4>80%,"Approval is subject to LMI","") ->  | O6: =MAX(IFERROR(_xlfn.NUMBERVALUE(H6:M6),0)) -> 0.95 | R6: High Density | S6: House/Townhouse/Unit | T6: SMSF - Residential | U6: Refer to Distribution Partner
A7: =IF(_xlfn._xlws.SORT(_xlfn.UNIQUE(_xlfn._xlws.FILTER(T:T, (R:R=D2) *(S:S=B3), "--")))=0,"",_xlfn._xlws.SORT(_xlfn.UNIQUE(_xlfn._xlws.FILTER(T:T, (R:R=D2) *(S:S=B3), "--")))) ->  | B7: =IFERROR(VLOOKUP(_xlfn.ANCHORARRAY(A7),G2:O27,9,FALSE),"") ->  | C7: =IFERROR(VLOOKUP(_xlfn.ANCHORARRAY(A7),G2:M27,P1,FALSE),"") ->  | D7: =IFERROR(VLOOKUP(_xlfn.ANCHORARRAY(A7),G30:M54,P1,FALSE),"") ->  | E7: =IFERROR(IF(VLOOKUP(_xlfn.ANCHORARRAY(A7),G2:N27,8,FALSE)="","",VLOOKUP(_xlfn.ANCHORARRAY(A7),G2:N27,8,FALSE)),"") ->  | G7: Residential - Regional Full Doc | H7: 0.6 | I7: 0.7 | J7: 0.75 | K7: 0.8 | L7: 0.9 | M7: N/A | N7: =IF(ISNUMBER(SEARCH("Apartment",$B$3)),"See Credit Help prior to proceeding",IF($B$4>80%,"Approval is subject to LMI","")) ->  | O7: =MAX(IFERROR(_xlfn.NUMBERVALUE(H7:M7),0)) -> 0.9 | R7: High Density | S7: House/Townhouse/Unit | T7: Non Resident
G8: Residential - Regional Alt Doc | H8: 0.6 | I8: N/A | J8: N/A | K8: N/A | L8: N/A | M8: N/A | O8: =MAX(IFERROR(_xlfn.NUMBERVALUE(H8:M8),0)) -> 0.6 | R8: High Density | S8: House/Townhouse/Unit | T8: Ex Pat | U8: House/Townhouse/Unit | V8: Apartments >10 (OTP/New/Existing)
G9: Residential - Non Coded | H9: 0.6 | I9: =IF(B4<=65%,65%,70%) -> 0.65 | J9: 0.75 | K9: 0.8 | L9: N/A | M9: N/A | O9: =MAX(IFERROR(_xlfn.NUMBERVALUE(H9:M9),0)) -> 0.8 | R9: High Density | S9: Apartments >10 (OTP/New/Existing) | T9: Residential - Owner OCC (metro) | U9: Apartments >10 (OTP/New/Existing) | V9: House/Townhouse/Unit
G10: Residential - Non Conforming Full/Alt Doc | H10: 0.6 | I10: =IF($B$4<=65%,65%,70%) -> 0.65 | J10: 0.75 | K10: 0.8 | L10: N/A | M10: N/A | N10: See Credit Help prior to proceeding | O10: =MAX(IFERROR(_xlfn.NUMBERVALUE(H10:M10),0)) -> 0.8 | R10: High Density | S10: Apartments >10 (OTP/New/Existing) | T10: Residential - Investment (metro) | U10: Construction | V10: Construction
G11: Residential - Non Conforming Regional | H11: 0.6 | I11: N/A | J11: N/A | K11: N/A | L11: N/A | M11: N/A | N11: See Credit Help prior to proceeding | O11: =MAX(IFERROR(_xlfn.NUMBERVALUE(H11:M11),0)) -> 0.6 | R11: High Density | S11: Apartments >10 (OTP/New/Existing) | T11: Residential - Non Conforming Full/Alt Doc | U11: Commercial | V11: Commercial
G12: SMSF - Residential | H12: 0.6 | I12: =IF($B$4<=65%,65%,70%) -> 0.65 | J12: 0.75 | K12: 0.8 | L12: N/A | M12: N/A | O12: =MAX(IFERROR(_xlfn.NUMBERVALUE(H12:M12),0)) -> 0.8 | R12: High Density | S12: Apartments >10 (OTP/New/Existing) | T12: Residential - Non Coded | U12: Vacant Land | V12: Vacant Land
G13: SMSF - Residential Regional | H13: 0.6 | I13: N/A | J13: N/A | K13: N/A | L13: N/A | M13: N/A | O13: =MAX(IFERROR(_xlfn.NUMBERVALUE(H13:M13),0)) -> 0.6 | R13: High Density | S13: Apartments >10 (OTP/New/Existing) | T13: SMSF - Residential
G14: SMSF - Commercial | H14: 0.6 | I14: =IF($B$4<=65%,65%,70%) -> 0.65 | J14: 0.75 | K14: =IF(AND($B$4>70%,$B$4<=80%),"N/A","N/A") -> N/A | L14: N/A | M14: N/A | O14: =MAX(IFERROR(_xlfn.NUMBERVALUE(H14:M14),0)) -> 0.75 | R14: High Density | S14: Apartments >10 (OTP/New/Existing) | T14: Non Resident
G15: SMSF - Commercial Regional | H15: 0.6 | I15: N/A | J15: N/A | K15: N/A | L15: N/A | M15: N/A | O15: =MAX(IFERROR(_xlfn.NUMBERVALUE(H15:M15),0)) -> 0.6 | R15: High Density | S15: Apartments >10 (OTP/New/Existing) | T15: Ex Pat
G16: Commercial - Residential | H16: 0.6 | I16: =IF($B$4<=65%,65%,70%) -> 0.65 | J16: =IF($B$4<=80%,80%,"N/A") -> 0.8 | K16: 0.8 | L16: N/A | M16: N/A | N16: See Credit Help prior to proceeding | O16: =MAX(IFERROR(_xlfn.NUMBERVALUE(H16:M16),0)) -> 0.8 | R16: High Density | S16: Construction | T16: Construction - Prime (Owner OCC)
G17: Commercial - Commercial | H17: 0.6 | I17: =IF($B$4<=65%,65%,70%) -> 0.65 | J17: 0.75 | K17: =IF(AND($B$4>70%,$B$4<=80%),"N/A","N/A") -> N/A | L17: N/A | M17: N/A | N17: See Credit Help prior to proceeding | O17: =MAX(IFERROR(_xlfn.NUMBERVALUE(H17:M17),0)) -> 0.75 | R17: High Density | S17: Construction | T17: Construction - Prime (Investment)
G18: Vacant Land | H18: 0.5 | I18: N/A | J18: N/A | K18: N/A | L18: N/A | M18: N/A | N18: See Credit Help prior to proceeding | O18: =MAX(IFERROR(_xlfn.NUMBERVALUE(H18:M18),0)) -> 0.5 | R18: High Density | S18: Construction | T18: Construction - Alt Doc
G19: Construction - Prime (Owner OCC) | H19: 0.6 | I19: 0.7 | J19: 0.75 | K19: 0.8 | L19: 0.9 | M19: 0.95 | N19: =IF(ISNUMBER(SEARCH("Apartment",$B$3)),"See Credit Help prior to proceeding",IF($B$4>80%,"Approval is subject to LMI","")) ->  | O19: =MAX(IFERROR(_xlfn.NUMBERVALUE(H19:M19),0)) -> 0.95 | R19: High Density | S19: Construction | T19: Construction - Foreign
G20: Construction - Prime (Investment) | H20: 0.6 | I20: 0.7 | J20: 0.75 | K20: 0.8 | L20: 0.9 | M20: N/A | N20: =IF(ISNUMBER(SEARCH("Apartment",$B$3)),"See Credit Help prior to proceeding",IF($B$4>80%,"Approval is subject to LMI","")) ->  | O20: =MAX(IFERROR(_xlfn.NUMBERVALUE(H20:M20),0)) -> 0.9 | R20: High Density | S20: Commercial | T20: Commercial - Residential
G21: Construction - Alt Doc | H21: 0.6 | I21: 0.7 | J21: 0.75 | K21: 0.8 | L21: N/A | M21: N/A | N21: =IF(ISNUMBER(SEARCH("Apartment",$B$3)),"See Credit Help prior to proceeding",IF($B$4>80%,"Approval is subject to LMI","")) ->  | O21: =MAX(IFERROR(_xlfn.NUMBERVALUE(H21:M21),0)) -> 0.8 | R21: High Density | S21: Commercial | T21: SMSF - Commercial
G22: Construction - Foreign | H22: 0.6 | I22: 0.7 | J22: 0.75 | K22: N/A | L22: N/A | M22: N/A | N22: See Credit Help prior to proceeding | O22: =MAX(IFERROR(_xlfn.NUMBERVALUE(H22:M22),0)) -> 0.75 | R22: Metro | S22: House/Townhouse/Unit | T22: Residential - Owner OCC (metro)
G23: Non Resident | H23: 0.6 | I23: 0.7 | J23: 0.75 | K23: N/A | L23: N/A | M23: N/A | N23: See Credit Help prior to proceeding | O23: =MAX(IFERROR(_xlfn.NUMBERVALUE(H23:M23),0)) -> 0.75 | R23: Metro | S23: House/Townhouse/Unit | T23: Residential - Investment (metro)
G24: Ex Pat | H24: 0.6 | I24: 0.7 | J24: 0.75 | K24: N/A | L24: N/A | M24: N/A | N24: See Credit Help prior to proceeding | O24: =MAX(IFERROR(_xlfn.NUMBERVALUE(H24:M24),0)) -> 0.75 | R24: Metro | S24: House/Townhouse/Unit | T24: Residential - Non Coded
G25: Construction - Foreign (Non Metro) | H25: Quote | I25: Quote | J25: Quote | K25: N/A | L25: N/A | M25: N/A | N25: See Credit Help prior to proceeding | O25: Quote | R25: Metro | S25: House/Townhouse/Unit | T25: Residential - Non Conforming Full/Alt Doc
G26: Non Resident (Non Metro) | H26: 0.6 | I26: 0.7 | J26: 0.75 | K26: N/A | L26: N/A | M26: N/A | N26: See Credit Help prior to proceeding | O26: =MAX(IFERROR(_xlfn.NUMBERVALUE(H26:M26),0)) -> 0.75 | R26: Metro | S26: House/Townhouse/Unit | T26: SMSF - Residential
G27: Ex Pat (Non Metro) | H27: 0.6 | I27: 0.7 | J27: 0.75 | K27: N/A | L27: N/A | M27: N/A | N27: See Credit Help prior to proceeding | O27: =MAX(IFERROR(_xlfn.NUMBERVALUE(H27:M27),0)) -> 0.75 | R27: Metro | S27: House/Townhouse/Unit | T27: Non Resident
R28: Metro | S28: House/Townhouse/Unit | T28: Ex Pat
G29: Products - Max Loan amount | H29: 0.6 | I29: 0.7 | J29: 0.75 | K29: 0.8 | L29: 0.9 | M29: 0.95 | N29: Comments | R29: Metro | S29: Apartments >10 (OTP/New/Existing) | T29: Residential - Owner OCC (metro)
G30: Residential - Owner OCC (metro) | H30: 2000000 | I30: 2000000 | J30: 1500000 | K30: 1500000 | L30: =IF($D$2="High Density","N/A",L93) -> 1000000 | M30: =IF($D$2="High Density","N/A",M93) -> 500000 | N30: =IF(ISNUMBER(SEARCH("Apartment",$B$3)),"See Credit Help prior to proceeding",IF($B$4>80%,"Approval is subject to LMI","")) ->  | R30: Metro | S30: Apartments >10 (OTP/New/Existing) | T30: Residential - Investment (metro)
G31: Residential - Investment (metro) | H31: 2000000 | I31: 2000000 | J31: 1500000 | K31: 1500000 | L31: =IF($D$2="High Density","N/A",L94) -> 1000000 | M31: 500000 | R31: Metro | S31: Apartments >10 (OTP/New/Existing) | T31: Residential - Non Coded
G32: Residential - Owner Occ (Non Metro) | H32: 1000000 | I32: 1000000 | J32: 1000000 | K32: 1000000 | L32: 750000 | M32: 500000 | R32: Metro | S32: Apartments >10 (OTP/New/Existing) | T32: Residential - Non Conforming Full/Alt Doc
G33: Residential - Investment (Non Metro) | H33: 1000000 | I33: 1000000 | J33: 1000000 | K33: 1000000 | L33: 750000 | M33: 500000 | R33: Metro | S33: Apartments >10 (OTP/New/Existing) | T33: SMSF - Residential
G34: Residential - Regional Full Doc | H34: 1000000 | I34: 1000000 | J34: 1000000 | K34: 1000000 | L34: 750000 | M34: N/A | R34: Metro | S34: Apartments >10 (OTP/New/Existing) | T34: Non Resident
G35: Residential - Regional Alt Doc | H35: 750000 | I35: N/A | J35: N/A | K35: N/A | L35: N/A | M35: N/A | R35: Metro | S35: Apartments >10 (OTP/New/Existing) | T35: Ex Pat
G36: Residential - Non Coded | H36: 3000000 | I36: =IF(B4<=65%,3000000,2000000) -> 3000000 | J36: =IF(B4<=70%,2000000,1500000) -> 2000000 | K36: 1500000 | L36: N/A | M36: N/A | N36: ="$3,000,000 up to 65% & $2,000,000 up to 70% " &IF(ISNUMBER(SEARCH("Apartment",$B$3)),"See Credit Help prior to proceeding","") -> $3,000,000 up to 65% & $2,000,000 up to 70% | R36: Metro | S36: Construction | T36: Construction - Prime (Owner OCC)
G37: Residential - Non Conforming Full/Alt Doc | H37: 1500000 | I37: 1250000 | J37: 1250000 | K37: 1250000 | L37: N/A | M37: N/A | N37: See Credit Help prior to proceeding | R37: Metro | S37: Construction | T37: Construction - Prime (Investment)
G38: Residential - Non Conforming Regional | H38: 750000 | I38: N/A | J38: N/A | K38: N/A | L38: N/A | M38: N/A | N38: See Credit Help prior to proceeding | R38: Metro | S38: Construction | T38: Construction - Alt Doc
G39: SMSF - Residential | H39: 1500000 | I39: 1500000 | J39: 1500000 | K39: 1250000 | L39: N/A | M39: N/A | N39: ="$2,000,000 up to 65% LVR "&IF(ISNUMBER(SEARCH("Apartment",$B$3)),"See Credit Help prior to proceeding","") -> $2,000,000 up to 65% LVR | R39: Metro | S39: Construction | T39: Construction - Foreign
G40: SMSF - Residential Regional | H40: 1250000 | I40: N/A | J40: N/A | K40: N/A | L40: N/A | M40: N/A | N40: =IF(ISNUMBER(SEARCH("Apartment",$B$3)),"See Credit Help prior to proceeding","") ->  | R40: Metro | S40: Commercial | T40: Commercial - Residential
G41: SMSF - Commercial | H41: 2000000 | I41: 2000000 | J41: 1500000 | K41: =IF(AND($B$4>70%,$B$4<=75%),"N/A","N/A") -> N/A | L41: N/A | M41: N/A | N41: $2,500,000 up to 65% LVR See Credit Help prior to proceeding | R41: Metro | S41: Commercial | T41: Commercial - Commercial
G42: SMSF - Commercial Regional | H42: 1500000 | I42: N/A | J42: N/A | K42: N/A | L42: N/A | M42: N/A | N42: =IF(ISNUMBER(SEARCH("Apartment",$B$3)),"See Credit Help prior to proceeding","") ->  | R42: Metro | S42: Commercial | T42: SMSF - Commercial
G43: Commercial - Residential | H43: 2500000 | I43: =IF($B$4<=65%,2500000,2000000) -> 2500000 | J43: =IF($B$4<=80%,1500000,"N/A") -> 1500000 | K43: 1500000 | L43: N/A | M43: N/A | N43: See Credit Help prior to proceeding | R43: Metro | S43: Vacant Land | T43: Vacant Land
G44: Commercial - Commercial | H44: 3000000 | I44: =IF($B$4<=65%,3000000,2000000) -> 3000000 | J44: 1500000 | K44: =IF(AND($B$4>70%,$B$4<=75%),"N/A","N/A") -> N/A | L44: N/A | M44: N/A | N44: See Credit Help prior to proceeding | P44: Exposure ratings | R44: Non Metro | S44: House/Townhouse/Unit | T44: Residential - Owner Occ (Non Metro)
G45: Vacant Land | H45: 1000000 | I45: N/A | J45: N/A | K45: N/A | L45: N/A | M45: N/A | N45: See Credit Help prior to proceeding | P45: Apartment - removes apartment to Quote only | R45: Non Metro | S45: House/Townhouse/Unit | T45: Residential - Investment (Non Metro)
G46: Construction - Prime (Owner OCC) | H46: Quote | I46: Quote | J46: Quote | K46: Quote | L46: Quote | M46: Quote | N46: =IF(ISNUMBER(SEARCH("Apartment",$B$3)),"See Credit Help prior to proceeding",IF($B$4>80%,"Approval is subject to LMI","")) ->  | R46: Non Metro | S46: House/Townhouse/Unit | T46: Residential - Non Conforming Full/Alt Doc
G47: Construction - Prime (Investment) | H47: Quote | I47: Quote | J47: Quote | K47: Quote | L47: Quote | M47: N/A | N47: =IF(ISNUMBER(SEARCH("Apartment",$B$3)),"See Credit Help prior to proceeding",IF($B$4>80%,"Approval is subject to LMI","")) ->  | R47: Non Metro | S47: House/Townhouse/Unit | T47: SMSF - Residential
G48: Construction - Alt Doc | H48: Quote | I48: Quote | J48: Quote | K48: Quote | L48: N/A | M48: N/A | N48: =IF(ISNUMBER(SEARCH("Apartment",$B$3)),"See Credit Help prior to proceeding","") ->  | R48: Non Metro | S48: House/Townhouse/Unit | T48: Non Resident (Non Metro)
G49: Construction - Foreign | H49: 900000 | I49: 900000 | J49: 900000 | K49: N/A | L49: N/A | M49: N/A | N49: See Credit Help prior to proceeding | R49: Non Metro | S49: House/Townhouse/Unit | T49: Ex Pat (Non Metro)
G50: Non Resident | H50: 1500000 | I50: 1500000 | J50: 1500000 | K50: N/A | L50: N/A | M50: N/A | N50: See Credit Help prior to proceeding | R50: Non Metro | S50: Apartments >10 (OTP/New/Existing) | T50: Residential - Owner Occ (Non Metro)
G51: Ex Pat | H51: 1500000 | I51: 1500000 | J51: 1500000 | K51: N/A | L51: N/A | M51: N/A | N51: See Credit Help prior to proceeding | R51: Non Metro | S51: Apartments >10 (OTP/New/Existing) | T51: Residential - Investment (Non Metro)
G52: Construction - Foreign (Non Metro) | H52: Quote | I52: Quote | J52: Quote | K52: N/A | L52: N/A | M52: N/A | N52: See Credit Help prior to proceeding | R52: Non Metro | S52: Apartments >10 (OTP/New/Existing) | T52: Residential - Non Conforming Full/Alt Doc
G53: Non Resident (Non Metro) | H53: 500000 | I53: 500000 | J53: 500000 | K53: N/A | L53: N/A | M53: N/A | N53: See Credit Help prior to proceeding | R53: Non Metro | S53: Apartments >10 (OTP/New/Existing) | T53: SMSF - Residential
G54: Ex Pat (Non Metro) | H54: 750000 | I54: 750000 | J54: 750000 | K54: N/A | L54: N/A | M54: N/A | N54: See Credit Help prior to proceeding | R54: Non Metro | S54: Apartments >10 (OTP/New/Existing) | T54: Non Resident (Non Metro)
R55: Non Metro | S55: Apartments >10 (OTP/New/Existing) | T55: Ex Pat (Non Metro)
G56: Gradings | H56: House/Unit | I56: Apartments >10 | J56: Construction | K56: Commercial | M56: Definitions to add | R56: Non Metro | S56: Construction | T56: Construction - Prime (Owner OCC)
G57: High Density | H57: Yes | I57: Yes | J57: Yes | K57: Yes | M57: Apartments >10 *80% LVR Cap | R57: Non Metro | S57: Construction | T57: Construction - Prime (Investment)
G58: Metro | H58: Yes | I58: Yes | J58: Yes | K58: Yes | M58: NDIS *65% LVR Cap | R58: Non Metro | S58: Construction | T58: Construction - Alt Doc
G59: Non Metro | H59: Yes | I59: Yes | J59: Yes | K59: Quote | M59: Duplex *80% LVR Cap | R59: Non Metro | S59: Construction | T59: Construction - Foreign (Non Metro)
G60: Regional | H60: Yes | I60: N/A | J60: N/A | K60: N/A | M60: Also have a min SQ meter table with LVR restrictions | R60: Non Metro | S60: Commercial | T60: Quote
G61: Refer to Distribution Partner | H61: Quote | I61: N/A | J61: N/A | K61: N/A | R61: Non Metro | S61: Commercial | T61: SMSF - Commercial
R62: Non Metro | S62: Vacant Land | T62: Vacant Land
R63: Regional | S63: House/Townhouse/Unit | T63: Residential - Regional Full Doc
R64: Regional | S64: House/Townhouse/Unit | T64: Residential - Regional Alt Doc
R65: Regional | S65: House/Townhouse/Unit | T65: SMSF - Residential Regional
L66: 0.9 | M66: =IF(AND(ISNUMBER(SEARCH("Apartment",$B$3))),"N/A","95%") -> 95% | R66: Regional | S66: House/Townhouse/Unit | T66: Residential - Non Conforming Regional
L67: 0.9 | M67: =IF(AND(ISNUMBER(SEARCH("Apartment",$B$3))),"N/A","95%") -> 95% | R67: Refer to Distribution Partner | S67: House/Townhouse/Unit | T67: Quote
L68: 0.9 | M68: =IF(AND(ISNUMBER(SEARCH("Apartment",$B$3))),"N/A","95%") -> 95% | R68: Refer to Distribution Partner | S68: Apartments >10 | T68: N/A
L69: 0.9 | M69: =IF(AND(ISNUMBER(SEARCH("Apartment",$B$3)),$D$2="Non Metro"),"N/A","95%") -> 95% | R69: Refer to Distribution Partner | S69: Construction | T69: N/A
L70: 0.9 | M70: N/A | R70: Refer to Distribution Partner | S70: Commercial | T70: N/A
L71: N/A | M71: N/A
L72: N/A | M72: N/A
L73: N/A | M73: N/A
L74: N/A | M74: N/A
L75: N/A | M75: N/A
L76: N/A | M76: N/A
L77: N/A | M77: N/A
L78: N/A | M78: N/A
L79: N/A | M79: N/A
L80: N/A | M80: N/A
L81: N/A | M81: N/A
L82: 0.9 | M82: 0.95
L83: 0.9 | M83: N/A
L84: N/A | M84: N/A
L85: N/A | M85: N/A
L86: N/A | M86: N/A
L87: N/A | M87: N/A
L88: N/A | M88: N/A
L89: N/A | M89: N/A
L90: N/A | M90: N/A
L93: 1000000 | M93: =IF(AND(ISNUMBER(SEARCH("Apartment",$B$3))),"N/A",IF($B$3="House/Townhouse/Unit",1000000,500000)) -> 500000
L94: 1000000 | M94: =IF(AND(ISNUMBER(SEARCH("Apartment",$B$3))),"N/A",IF($B$3="House/Townhouse/Unit",1000000,500000)) -> 500000
L95: 750000 | M95: =IF(AND(ISNUMBER(SEARCH("Apartment",$B$3))),"N/A",500000) -> 500000
L96: 750000 | M96: =IF(AND(ISNUMBER(SEARCH("Apartment",$B$3)),$D$2="Non Metro"),"N/A",500000) -> 500000
L97: 750000 | M97: N/A
L98: N/A | M98: N/A
L99: N/A | M99: N/A
L100: N/A | M100: N/A
L101: N/A | M101: N/A
L102: N/A | M102: N/A
L103: N/A | M103: N/A
L104: N/A | M104: N/A
L105: N/A | M105: N/A
L106: N/A | M106: N/A
L107: N/A | M107: N/A
L108: N/A | M108: N/A
L109: Quote | M109: Quote
L110: Quote | M110: N/A
L111: N/A | M111: N/A
L112: N/A | M112: N/A
L113: N/A | M113: N/A
L114: N/A | M114: N/A
L115: N/A | M115: N/A
L116: N/A | M116: N/A
L117: N/A | M117: N/A

Sheet Post Code data (hidden)
A1: Postcode | B1: Active/Retired | C1: LMI Location | D1: Ratings Location | E1: Geographic Region | F1: S&P Rating | G1: La Trobe Risk Location | H1: Origin rating | I1: Genworth rating | J1: Population ABS 2016 | K1: Avg Distance from Post Office | L1: Extra Data | M1: Exposure | N1: BC Overwrite | O1: BC Rating | P1: BC Score Test | R1: Geographic Region | S1: S&P | T1: Latrobe | U1: Origin | V1: ABS | W1: Distance Po | X1: Mining | AD1: =_xlfn._xlws.SORT(_xlfn._xlws.FILTER(A:A,ISNUMBER(SEARCH('Post Code Calculator'!B2,A:A)),"not found")) -> 800
A2: 800 | B2: A | C2: Metro | D2: Metro | E2: 701 NT Metro - Darwin | F2: Metro | G2: A Metro | H2: 1 | I2: High Density | J2: 6464 | K2: 0.5 | O2: =IF(ISBLANK(N2),IF(AND(H2<>"",IF(I2="High Density","High Density",IF(AND(P2<=45,P2>0),"Refer to Distribution Partner",IF(AND(P2<=55,P2>45),"Regional",IF(AND(P2>55,P2<=70),"Non Metro",IF(F2="Nonmetro","Non Metro",IF(P2>70,"Metro",""))))))="Refer to Distribution Partner"),"Regional",IF(I2="High Density","High Density",IF(AND(P2<=45,P2>0),"Refer to Distribution Partner",IF(AND(P2<=55,P2>45),"Regional",IF(AND(P2>55,P2<=70),"Non Metro",IF(F2="Nonmetro","Non Metro",IF(P2>70,"Metro",""))))))),N2) -> High Density | P2: =(R2/$AB$3*$AA$3+S2/$AB$4*$AA$4+T2/$AB$5*$AA$5+U2/$AB$6*$AA$6+V2/$AB$7*$AA$7+W2/$AB$8*$AA$8+X2/$AB$9*$AA$9)*100 -> 86.66666667 | R2: =IF(ISNUMBER(SEARCH("Metro",E2)),3,IF(ISNUMBER(SEARCH("Rural",E2)),2,1)) -> 3 | S2: =IF(ISNUMBER(FIND("Metro",F2)),3,IF(ISNUMBER(FIND("Nonmetro",F2)),2,3)) -> 3 | T2: =IF(G2="A Metro",3,IF(G2="B Regional",2,IF(G2="C Pop > 7,000",1,IF(G2="D Pop > 2,000",1,0)))) -> 3 | U2: =IF(H2=1,3,IF(H2=2,2,IF(H2=3,1,0))) -> 3 | V2: =IF(J2>=100000,3,IF(AND(J2>=10000,J2<100000),2,IF(AND(J2>=5000,J2<10000),1,0))) -> 1 | W2: =IF(AND(K2>=0.1,K2<25),3,IF(AND(K2>=25,K2<50),2,IF(AND(K2>=50,K2<150),1,0))) -> 3 | X2: =IF(L2="",3,0) -> 3 | AD2: 810
A3: 810 | B3: A | C3: Metro | D3: Metro | E3: 701 NT Metro - Darwin | F3: Metro | G3: A Metro | H3: 1 | J3: 33302 | K3: 10.1 | O3: Metro | P3: 93.33333333 | R3: 3 | S3: 3 | T3: 3 | U3: 3 | V3: 2 | W3: 3 | X3: 3 | AA3: 0.05 | AB3: 3 | AD3: 812
A4: 812 | B4: A | C4: Metro | D4: Metro | E4: 701 NT Metro - Darwin | F4: Metro | G4: A Metro | H4: 1 | J4: 18873 | K4: 10.5 | O4: Metro | P4: 93.33333333 | R4: 3 | S4: 3 | T4: 3 | U4: 3 | V4: 2 | W4: 3 | X4: 3 | AA4: 0.2 | AB4: 3 | AD4: 820
A5: 820 | B5: A | C5: Metro | D5: Metro | E5: 701 NT Metro - Darwin | F5: Metro | G5: A Metro | H5: 1 | J5: 19447 | K5: 3.2 | O5: Metro | P5: 93.33333333 | R5: 3 | S5: 3 | T5: 3 | U5: 3 | V5: 2 | W5: 3 | X5: 3 | AA5: 0.2 | AB5: 3 | AD5: 822
A6: 822 | B6: A | C6: Regional | D6: Regional | E6: 702 NT Rural - Outback | F6: Nonmetro | G6: B Regional | J6: 25560 | K6: 38.1 | O6: Regional | P6: 55 | R6: 2 | S6: 2 | T6: 2 | U6: 0 | V6: 2 | W6: 2 | X6: 3 | AA6: 0.2 | AB6: 3 | AD6: 828
A7: 828 | B7: A | C7: Metro | D7: Metro | E7: 701 NT Metro - Darwin | F7: Metro | G7: A Metro | H7: 1 | J7: 1201 | K7: 11.1 | O7: Metro | P7: 80 | R7: 3 | S7: 3 | T7: 3 | U7: 3 | V7: 0 | W7: 3 | X7: 3 | AA7: 0.2 | AB7: 3 | AD7: 829
A8: 829 | B8: A | C8: Metro | D8: Metro | E8: 701 NT Metro - Darwin | F8: Metro | G8: A Metro | H8: 1 | J8: 1839 | K8: 11.1 | O8: Metro | P8: 80 | R8: 3 | S8: 3 | T8: 3 | U8: 3 | V8: 0 | W8: 3 | X8: 3 | AA8: 0.1 | AB8: 3 | AD8: 830
A9: 830 | B9: A | C9: Metro | D9: Metro | E9: 701 NT Metro - Darwin | F9: Metro | G9: A Metro | H9: 1 | J9: 18207 | K9: 15.4 | O9: Metro | P9: 93.33333333 | R9: 3 | S9: 3 | T9: 3 | U9: 3 | V9: 2 | W9: 3 | X9: 3 | AA9: 0.05 | AB9: 3 | AD9: 832
A10: 832 | B10: A | C10: Metro | D10: Metro | E10: 701 NT Metro - Darwin | F10: Metro | G10: A Metro | H10: 1 | J10: 15570 | K10: 17.4 | O10: Metro | P10: 93.33333333 | R10: 3 | S10: 3 | T10: 3 | U10: 3 | V10: 2 | W10: 3 | X10: 3 | AA10: =SUM(AA3:AA9) -> 1 | AB10: =SUM(AB3:AB9) -> 21 | AD10: 834
A11: 834 | B11: A | C11: Regional | D11: Regional | E11: Unknown | F11: Nonmetro | G11: B Regional | J11: 1836 | K11: 23.1 | O11: Refer to Distribution Partner | P11: 43.33333333 | R11: 1 | S11: 2 | T11: 2 | U11: 0 | V11: 0 | W11: 3 | X11: 3 | AD11: 835
A12: 835 | B12: A | C12: Regional | D12: Regional | E12: 701 NT Metro - Darwin | F12: Nonmetro | G12: B Regional | H12: 2 | J12: 5132 | K12: 23.6 | O12: Non Metro | P12: 66.66666667 | R12: 3 | S12: 2 | T12: 2 | U12: 2 | V12: 1 | W12: 3 | X12: 3 | AD12: 836
A13: 836 | B13: A | C13: Regional | D13: Regional | E13: 701 NT Metro - Darwin | F13: Nonmetro | G13: B Regional | H13: 2 | J13: 7756 | K13: 33 | O13: Non Metro | P13: 63.33333333 | R13: 3 | S13: 2 | T13: 2 | U13: 2 | V13: 1 | W13: 2 | X13: 3 | AD13: 837
A14: 837 | B14: A | C14: Other | D14: Regional | E14: 701 NT Metro - Darwin | F14: Nonmetro | G14: E Pop > 500 | J14: 412 | K14: 33 | O14: Refer to Distribution Partner | P14: 30 | R14: 3 | S14: 2 | T14: 0 | U14: 0 | V14: 0 | W14: 2 | X14: 3 | AD14: 838
A15: 838 | B15: A | C15: Other | D15: Regional | E15: 701 NT Metro - Darwin | F15: Nonmetro | G15: E Pop > 500 | J15: 818 | K15: 34.7 | O15: Refer to Distribution Partner | P15: 30 | R15: 3 | S15: 2 | T15: 0 | U15: 0 | V15: 0 | W15: 2 | X15: 3 | AD15: 839
A16: 839 | B16: A | C16: Other | D16: Regional | E16: Unknown | F16: Nonmetro | G16: F Pop <= 500 | J16: 548 | K16: 61 | O16: Refer to Distribution Partner | P16: 23.33333333 | R16: 1 | S16: 2 | T16: 0 | U16: 0 | V16: 0 | W16: 1 | X16: 3 | AD16: 840
A17: 840 | B17: A | C17: Other | D17: Regional | E17: 702 NT Rural - Outback | F17: Nonmetro | G17: E Pop > 500 | J17: 363 | K17: 61 | L17: Mining | O17: Refer to Distribution Partner | P17: 20 | R17: 2 | S17: 2 | T17: 0 | U17: 0 | V17: 0 | W17: 1 | X17: 0 | AD17: 841
A18: 841 | B18: A | C18: Other | D18: Regional | E18: 701 NT Metro - Darwin | F18: Nonmetro | G18: E Pop > 500 | J18: 696 | K18: 61 | O18: Refer to Distribution Partner | P18: 26.66666667 | R18: 3 | S18: 2 | T18: 0 | U18: 0 | V18: 0 | W18: 1 | X18: 3 | AD18: 845
A19: 845 | B19: A | C19: Other | D19: Regional | E19: 702 NT Rural - Outback | F19: Nonmetro | G19: F Pop <= 500 | J19: 507 | K19: 271.3 | L19: Mining | O19: Refer to Distribution Partner | P19: 16.66666667 | R19: 2 | S19: 2 | T19: 0 | U19: 0 | V19: 0 | W19: 0 | X19: 0 | AD19: 846
A20: 846 | B20: A | C20: Other | D20: Regional | E20: 702 NT Rural - Outback | F20: Nonmetro | G20: F Pop <= 500 | J20: 353 | K20: 271.3 | O20: Refer to Distribution Partner | P20: 21.66666667 | R20: 2 | S20: 2 | T20: 0 | U20: 0 | V20: 0 | W20: 0 | X20: 3 | AD20: 847
A21: 847 | B21: A | C21: Other | D21: Regional | E21: 702 NT Rural - Outback | F21: Nonmetro | G21: F Pop <= 500 | J21: 358 | K21: 271.3 | L21: Mining | O21: Refer to Distribution Partner | P21: 16.66666667 | R21: 2 | S21: 2 | T21: 0 | U21: 0 | V21: 0 | W21: 0 | X21: 0 | AD21: 850
A22: 850 | B22: A | C22: Other | D22: Regional | E22: 702 NT Rural - Outback | F22: Nonmetro | G22: C Pop > 7,000 | H22: 3 | J22: 8138 | K22: 271.3 | O22: Regional | P22: 41.66666667 | R22: 2 | S22: 2 | T22: 1 | U22: 1 | V22: 1 | W22: 0 | X22: 3 | AD22: 852
A23: 852 | B23: A | C23: Other | D23: Regional | E23: 702 NT Rural - Outback | F23: Nonmetro | G23: C Pop > 7,000 | J23: 8299 | K23: 271.3 | O23: Refer to Distribution Partner | P23: 35 | R23: 2 | S23: 2 | T23: 1 | U23: 0 | V23: 1 | W23: 0 | X23: 3 | AD23: 853
A24: 853 | B24: A | C24: Other | D24: Regional | E24: 702 NT Rural - Outback | F24: Nonmetro | G24: E Pop > 500 | J24: 857 | K24: 271.3 | O24: Refer to Distribution Partner | P24: 21.66666667 | R24: 2 | S24: 2 | T24: 0 | U24: 0 | V24: 0 | W24: 0 | X24: 3 | AD24: 854
A25: 854 | B25: A | C25: Other | D25: Regional | E25: 702 NT Rural - Outback | F25: Nonmetro | G25: E Pop > 500 | J25: 871 | K25: 271.3 | L25: Mining | O25: Refer to Distribution Partner | P25: 16.66666667 | R25: 2 | S25: 2 | T25: 0 | U25: 0 | V25: 0 | W25: 0 | X25: 0 | AD25: 860
A26: 860 | B26: A | C26: Other | D26: Regional | E26: 702 NT Rural - Outback | F26: Nonmetro | G26: D Pop > 2,000 | J26: 2991 | K26: 875.8 | O26: Refer to Distribution Partner | P26: 28.33333333 | R26: 2 | S26: 2 | T26: 1 | U26: 0 | V26: 0 | W26: 0 | X26: 3 | AD26: 862
A27: 862 | B27: A | C27: Other | D27: Regional | E27: 702 NT Rural - Outback | F27: Nonmetro | G27: E Pop > 500 | J27: 765 | K27: 875.8 | O27: Refer to Distribution Partner | P27: 21.66666667 | R27: 2 | S27: 2 | T27: 0 | U27: 0 | V27: 0 | W27: 0 | X27: 3 | AD27: 870
A28: 870 | B28: A | C28: Regional | D28: Regional | E28: 702 NT Rural - Outback | F28: Nonmetro | G28: B Regional | H28: 2 | J28: 19628 | K28: 1290.4 | O28: Non Metro | P28: 61.66666667 | R28: 2 | S28: 2 | T28: 2 | U28: 2 | V28: 2 | W28: 0 | X28: 3 | AD28: 872
A29: 872 | B29: A | C29: Other | D29: Regional | E29: 702 NT Rural - Outback | F29: Nonmetro | G29: C Pop > 7,000 | J29: 15469 | K29: 1290.4 | O29: Refer to Distribution Partner | P29: 41.66666667 | R29: 2 | S29: 2 | T29: 1 | U29: 0 | V29: 2 | W29: 0 | X29: 3 | AD29: 874
A30: 874 | B30: A | C30: Other | D30: Regional | E30: Unknown | F30: Nonmetro | G30: F Pop <= 500 | J30: 553 | K30: 1290.4 | O30: Refer to Distribution Partner | P30: 20 | R30: 1 | S30: 2 | T30: 0 | U30: 0 | V30: 0 | W30: 0 | X30: 3 | AD30: 875
A31: 875 | B31: A | C31: Other | D31: Regional | E31: Unknown | F31: Nonmetro | G31: D Pop > 2,000 | J31: 2371 | K31: 1288.5 | O31: Refer to Distribution Partner | P31: 26.66666667 | R31: 1 | S31: 2 | T31: 1 | U31: 0 | V31: 0 | W31: 0 | X31: 3 | AD31: 880
A32: 880 | B32: A | C32: Other | D32: Regional | E32: 702 NT Rural - Outback | F32: Nonmetro | G32: D Pop > 2,000 | J32: 5214 | K32: 1288.5 | L32: Mining | O32: Refer to Distribution Partner | P32: 30 | R32: 2 | S32: 2 | T32: 1 | U32: 0 | V32: 1 | W32: 0 | X32: 0 | AD32: 885
A33: 885 | B33: A | C33: Other | D33: Regional | E33: 702 NT Rural - Outback | F33: Nonmetro | G33: E Pop > 500 | J33: 873 | K33: 1288.5 | L33: Mining | O33: Refer to Distribution Partner | P33: 16.66666667 | R33: 2 | S33: 2 | T33: 0 | U33: 0 | V33: 0 | W33: 0 | X33: 0 | AD33: 886
A34: 886 | B34: A | C34: Other | D34: Regional | E34: 702 NT Rural - Outback | F34: Nonmetro | G34: E Pop > 500 | J34: 1081 | K34: 1288.5 | L34: Mining | O34: Refer to Distribution Partner | P34: 16.66666667 | R34: 2 | S34: 2 | T34: 0 | U34: 0 | V34: 0 | W34: 0 | X34: 0 | AD34: 2000
A35: 2000 | B35: A | C35: Metro | D35: Inner City | E35: 117 NSW Metro - CBD & Inner South | F35: Inner city | G35: A Metro | H35: 1 | I35: High Density | J35: 27411 | K35: 1.2 | O35: High Density | P35: 93.33333333 | R35: 3 | S35: 3 | T35: 3 | U35: 3 | V35: 2 | W35: 3 | X35: 3 | AD35: 2006
A36: 2006 | B36: A | C36: Metro | D36: Metro | E36: 117 NSW Metro - CBD & Inner South | F36: Metro | G36: A Metro | H36: 1 | J36: 1259 | K36: 0 | O36: Non Metro | P36: 70 | R36: 3 | S36: 3 | T36: 3 | U36: 3 | V36: 0 | W36: 0 | X36: 3 | AD36: 2007
A37: 2007 | B37: A | C37: Metro | D37: Metro | E37: 117 NSW Metro - CBD & Inner South | F37: Metro | G37: A Metro | H37: 1 | J37: 8845 | K37: 1.8 | O37: Metro | P37: 86.66666667 | R37: 3 | S37: 3 | T37: 3 | U37: 3 | V37: 1 | W37: 3 | X37: 3 | AD37: 2008
A38: 2008 | B38: A | C38: Metro | D38: Metro | E38: 117 NSW Metro - CBD & Inner South | F38: Metro | G38: A Metro | H38: 1 | J38: 11712 | K38: 2.7 | O38: Metro | P38: 93.33333333 | R38: 3 | S38: 3 | T38: 3 | U38: 3 | V38: 2 | W38: 3 | X38: 3 | AD38: 2009
A39: 2009 | B39: A | C39: Metro | D39: Metro | E39: 117 NSW Metro - CBD & Inner South | F39: Metro | G39: A Metro | H39: 1 | J39: 12813 | K39: 1.4 | O39: Metro | P39: 93.33333333 | R39: 3 | S39: 3 | T39: 3 | U39: 3 | V39: 2 | W39: 3 | X39: 3 | AD39: 2010
A40: 2010 | B40: A | C40: Metro | D40: Metro | E40: 117 NSW Metro - CBD & Inner South | F40: Metro | G40: A Metro | H40: 1 | J40: 27734 | K40: 1.9 | O40: Metro | P40: 93.33333333 | R40: 3 | S40: 3 | T40: 3 | U40: 3 | V40: 2 | W40: 3 | X40: 3 | AD40: 2011
A41: 2011 | B41: A | C41: Metro | D41: Metro | E41: 117 NSW Metro - CBD & Inner South | F41: Metro | G41: A Metro | H41: 1 | J41: 21196 | K41: 1.7 | O41: Metro | P41: 93.33333333 | R41: 3 | S41: 3 | T41: 3 | U41: 3 | V41: 2 | W41: 3 | X41: 3 | AD41: 2015
A42: 2015 | B42: A | C42: Metro | D42: Metro | E42: 117 NSW Metro - CBD & Inner South | F42: Metro | G42: A Metro | H42: 1 | J42: 9918 | K42: 4.3 | O42: Metro | P42: 86.66666667 | R42: 3 | S42: 3 | T42: 3 | U42: 3 | V42: 1 | W42: 3 | X42: 3 | AD42: 2016
A43: 2016 | B43: A | C43: Metro | D43: Metro | E43: 117 NSW Metro - CBD & Inner South | F43: Metro | G43: A Metro | H43: 1 | J43: 13213 | K43: 2.9 | O43: Metro | P43: 93.33333333 | R43: 3 | S43: 3 | T43: 3 | U43: 3 | V43: 2 | W43: 3 | X43: 3 | AD43: 2017
A44: 2017 | B44: A | C44: Metro | D44: Metro | E44: 117 NSW Metro - CBD & Inner South | F44: Metro | G44: A Metro | H44: 1 | I44: High Density | J44: 24695 | K44: 3.9 | O44: High Density | P44: 93.33333333 | R44: 3 | S44: 3 | T44: 3 | U44: 3 | V44: 2 | W44: 3 | X44: 3 | AD44: 2018
A45: 2018 | B45: A | C45: Metro | D45: Metro | E45: 117 NSW Metro - CBD & Inner South | F45: Metro | G45: A Metro | H45: 1 | J45: 17028 | K45: 6.1 | O45: Metro | P45: 93.33333333 | R45: 3 | S45: 3 | T45: 3 | U45: 3 | V45: 2 | W45: 3 | X45: 3 | AD45: 2019
A46: 2019 | B46: A | C46: Metro | D46: Metro | E46: 117 NSW Metro - CBD & Inner South | F46: Metro | G46: A Metro | H46: 1 | J46: 10838 | K46: 9 | O46: Metro | P46: 93.33333333 | R46: 3 | S46: 3 | T46: 3 | U46: 3 | V46: 2 | W46: 3 | X46: 3 | AD46: 2020
A47: 2020 | B47: A | C47: Metro | D47: Metro | E47: 117 NSW Metro - CBD & Inner South | F47: Metro | G47: A Metro | H47: 1 | J47: 14772 | K47: 7 | O47: Metro | P47: 93.33333333 | R47: 3 | S47: 3 | T47: 3 | U47: 3 | V47: 2 | W47: 3 | X47: 3 | AD47: 2021
A48: 2021 | B48: A | C48: Metro | D48: Metro | E48: 118 NSW Metro - Bondi | F48: Metro | G48: A Metro | H48: 1 | J48: 15313 | K48: 2.9 | O48: Metro | P48: 93.33333333 | R48: 3 | S48: 3 | T48: 3 | U48: 3 | V48: 2 | W48: 3 | X48: 3 | AD48: 2022
A49: 2022 | B49: A | C49: Metro | D49: Metro | E49: 118 NSW Metro - Bondi | F49: Metro | G49: A Metro | H49: 1 | J49: 12507 | K49: 4.8 | O49: Metro | P49: 93.33333333 | R49: 3 | S49: 3 | T49: 3 | U49: 3 | V49: 2 | W49: 3 | X49: 3 | AD49: 2023
A50: 2023 | B50: A | C50: Metro | D50: Metro | E50: 118 NSW Metro - Bondi | F50: Metro | G50: A Metro | H50: 1 | J50: 10716 | K50: 5.1 | O50: Metro | P50: 93.33333333 | R50: 3 | S50: 3 | T50: 3 | U50: 3 | V50: 2 | W50: 3 | X50: 3 | AD50: 2024
A51: 2024 | B51: A | C51: Metro | D51: Metro | E51: 118 NSW Metro - Bondi | F51: Metro | G51: A Metro | H51: 1 | J51: 11073 | K51: 6.3 | O51: Metro | P51: 93.33333333 | R51: 3 | S51: 3 | T51: 3 | U51: 3 | V51: 2 | W51: 3 | X51: 3 | AD51: 2025
A52: 2025 | B52: A | C52: Metro | D52: Metro | E52: 118 NSW Metro - Bondi | F52: Metro | G52: A Metro | H52: 1 | J52: 7405 | K52: 4 | O52: Metro | P52: 86.66666667 | R52: 3 | S52: 3 | T52: 3 | U52: 3 | V52: 1 | W52: 3 | X52: 3 | AD52: 2026
A53: 2026 | B53: A | C53: Metro | D53: Metro | E53: 118 NSW Metro - Bondi | F53: Metro | G53: A Metro | H53: 1 | J53: 32490 | K53: 6.4 | O53: Metro | P53: 93.33333333 | R53: 3 | S53: 3 | T53: 3 | U53: 3 | V53: 2 | W53: 3 | X53: 3 | AD53: 2027
A54: 2027 | B54: A | C54: Metro | D54: Metro | E54: 118 NSW Metro - Bondi | F54: Metro | G54: A Metro | H54: 1 | J54: 8195 | K54: 3.3 | O54: Metro | P54: 86.66666667 | R54: 3 | S54: 3 | T54: 3 | U54: 3 | V54: 1 | W54: 3 | X54: 3 | AD54: 2028
A55: 2028 | B55: A | C55: Metro | D55: Metro | E55: 118 NSW Metro - Bondi | F55: Metro | G55: A Metro | H55: 1 | J55: 4642 | K55: 3.5 | O55: Metro | P55: 80 | R55: 3 | S55: 3 | T55: 3 | U55: 3 | V55: 0 | W55: 3 | X55: 3 | AD55: 2029
A56: 2029 | B56: A | C56: Metro | D56: Metro | E56: 118 NSW Metro - Bondi | F56: Metro | G56: A Metro | H56: 1 | J56: 9961 | K56: 6.1 | O56: Metro | P56: 86.66666667 | R56: 3 | S56: 3 | T56: 3 | U56: 3 | V56: 1 | W56: 3 | X56: 3 | AD56: 2030
A57: 2030 | B57: A | C57: Metro | D57: Metro | E57: 118 NSW Metro - Bondi | F57: Metro | G57: A Metro | H57: 1 | J57: 14079 | K57: 6.8 | O57: Metro | P57: 93.33333333 | R57: 3 | S57: 3 | T57: 3 | U57: 3 | V57: 2 | W57: 3 | X57: 3 | AD57: 2031
A58: 2031 | B58: A | C58: Metro | D58: Metro | E58: 118 NSW Metro - Bondi | F58: Metro | G58: A Metro | H58: 1 | J58: 34726 | K58: 6.3 | O58: Metro | P58: 93.33333333 | R58: 3 | S58: 3 | T58: 3 | U58: 3 | V58: 2 | W58: 3 | X58: 3 | AD58: 2032
A59: 2032 | B59: A | C59: Metro | D59: Metro | E59: 118 NSW Metro - Bondi | F59: Metro | G59: A Metro | H59: 1 | J59: 16689 | K59: 6.8 | O59: Metro | P59: 93.33333333 | R59: 3 | S59: 3 | T59: 3 | U59: 3 | V59: 2 | W59: 3 | X59: 3 | AD59: 2033
A60: 2033 | B60: A | C60: Metro | D60: Metro | E60: 118 NSW Metro - Bondi | F60: Metro | G60: A Metro | H60: 1 | J60: 14079 | K60: 5.1 | O60: Metro | P60: 93.33333333 | R60: 3 | S60: 3 | T60: 3 | U60: 3 | V60: 2 | W60: 3 | X60: 3 | AD60: 2034
A61: 2034 | B61: A | C61: Metro | D61: Metro | E61: 118 NSW Metro - Bondi | F61: Metro | G61: A Metro | H61: 1 | J61: 20713 | K61: 7.8 | O61: Metro | P61: 93.33333333 | R61: 3 | S61: 3 | T61: 3 | U61: 3 | V61: 2 | W61: 3 | X61: 3 | AD61: 2035
A62: 2035 | B62: A | C62: Metro | D62: Metro | E62: 118 NSW Metro - Bondi | F62: Metro | G62: A Metro | H62: 1 | J62: 34490 | K62: 9.1 | O62: Metro | P62: 93.33333333 | R62: 3 | S62: 3 | T62: 3 | U62: 3 | V62: 2 | W62: 3 | X62: 3 | AD62: 2036
A63: 2036 | B63: A | C63: Metro | D63: Metro | E63: 118 NSW Metro - Bondi | F63: Metro | G63: A Metro | H63: 1 | J63: 30407 | K63: 11.3 | O63: Metro | P63: 93.33333333 | R63: 3 | S63: 3 | T63: 3 | U63: 3 | V63: 2 | W63: 3 | X63: 3 | AD63: 2037
A64: 2037 | B64: A | C64: Metro | D64: Metro | E64: 117 NSW Metro - CBD & Inner South | F64: Metro | G64: A Metro | H64: 1 | J64: 16115 | K64: 2.6 | O64: Metro | P64: 93.33333333 | R64: 3 | S64: 3 | T64: 3 | U64: 3 | V64: 2 | W64: 3 | X64: 3 | AD64: 2038
A65: 2038 | B65: A | C65: Metro | D65: Metro | E65: 120 NSW Metro - Homebush | F65: Metro | G65: A Metro | H65: 1 | J65: 9451 | K65: 3.7 | O65: Metro | P65: 86.66666667 | R65: 3 | S65: 3 | T65: 3 | U65: 3 | V65: 1 | W65: 3 | X65: 3 | AD65: 2039
A66: 2039 | B66: A | C66: Metro | D66: Metro | E66: 120 NSW Metro - Homebush | F66: Metro | G66: A Metro | H66: 1 | J66: 8725 | K66: 3.6 | O66: =IF(ISBLANK(N66),IF(AND(H66<>"",IF(I66="High Density","High Density",IF(AND(P66<=45,P66>0),"Refer to Distribution Partner",IF(AND(P66<=55,P66>45),"Regional",IF(AND(P66>55,P66<=70),"Non Metro",IF(F66="Nonmetro","Non Metro",IF(P66>70,"Metro",""))))))="Refer to Distribution Partner"),"Regional",IF(I66="High Density","High Density",IF(AND(P66<=45,P66>0),"Refer to Distribution Partner",IF(AND(P66<=55,P66>45),"Regional",IF(AND(P66>55,P66<=70),"Non Metro",IF(F66="Nonmetro","Non Metro",IF(P66>70,"Metro",""))))))),N66) -> Metro | P66: =(R66/$AB$3*$AA$3+S66/$AB$4*$AA$4+T66/$AB$5*$AA$5+U66/$AB$6*$AA$6+V66/$AB$7*$AA$7+W66/$AB$8*$AA$8+X66/$AB$9*$AA$9)*100 -> 86.66666667 | R66: =IF(ISNUMBER(SEARCH("Metro",E66)),3,IF(ISNUMBER(SEARCH("Rural",E66)),2,1)) -> 3 | S66: =IF(ISNUMBER(FIND("Metro",F66)),3,IF(ISNUMBER(FIND("Nonmetro",F66)),2,3)) -> 3 | T66: =IF(G66="A Metro",3,IF(G66="B Regional",2,IF(G66="C Pop > 7,000",1,IF(G66="D Pop > 2,000",1,0)))) -> 3 | U66: =IF(H66=1,3,IF(H66=2,2,IF(H66=3,1,0))) -> 3 | V66: =IF(J66>=100000,3,IF(AND(J66>=10000,J66<100000),2,IF(AND(J66>=5000,J66<10000),1,0))) -> 1 | W66: =IF(AND(K66>=0.1,K66<25),3,IF(AND(K66>=25,K66<50),2,IF(AND(K66>=50,K66<150),1,0))) -> 3 | X66: =IF(L66="",3,0) -> 3 | AD66: 2040
A67: 2040 | B67: A | C67: Metro | D67: Metro | E67: 120 NSW Metro - Homebush | F67: Metro | G67: A Metro | H67: 1 | J67: 22242 | K67: 5.2 | O67: Metro | P67: 93.33333333 | R67: 3 | S67: 3 | T67: 3 | U67: 3 | V67: 2 | W67: 3 | X67: 3 | AD67: 2041
A68: 2041 | B68: A | C68: Metro | D68: Metro | E68: 120 NSW Metro - Homebush | F68: Metro | G68: A Metro | H68: 1 | J68: 15690 | K68: 2.8 | O68: Metro | P68: 93.33333333 | R68: 3 | S68: 3 | T68: 3 | U68: 3 | V68: 2 | W68: 3 | X68: 3 | AD68: 2042
A69: 2042 | B69: A | C69: Metro | D69: Metro | E69: 117 NSW Metro - CBD & Inner South | F69: Metro | G69: A Metro | H69: 1 | J69: 19129 | K69: 4.5 | O69: Metro | P69: 93.33333333 | R69: 3 | S69: 3 | T69: 3 | U69: 3 | V69: 2 | W69: 3 | X69: 3 | AD69: 2043
A70: 2043 | B70: A | C70: Metro | D70: Metro | E70: 117 NSW Metro - CBD & Inner South | F70: Metro | G70: A Metro | H70: 1 | J70: 8014 | K70: 4.5 | O70: Metro | P70: 86.66666667 | R70: 3 | S70: 3 | T70: 3 | U70: 3 | V70: 1 | W70: 3 | X70: 3 | AD70: 2044
A71: 2044 | B71: A | C71: Metro | D71: Metro | E71: 117 NSW Metro - CBD & Inner South | F71: Metro | G71: A Metro | H71: 1 | J71: 7846 | K71: 6.8 | O71: Metro | P71: 86.66666667 | R71: 3 | S71: 3 | T71: 3 | U71: 3 | V71: 1 | W71: 3 | X71: 3 | AD71: 2045
A72: 2045 | B72: A | C72: Metro | D72: Metro | E72: 120 NSW Metro - Homebush | F72: Metro | G72: A Metro | H72: 1 | J72: 6457 | K72: 6.4 | O72: Metro | P72: 86.66666667 | R72: 3 | S72: 3 | T72: 3 | U72: 3 | V72: 1 | W72: 3 | X72: 3 | AD72: 2046
A73: 2046 | B73: A | C73: Metro | D73: Metro | E73: 120 NSW Metro - Homebush | F73: Metro | G73: A Metro | H73: 1 | J73: 26822 | K73: 7.2 | O73: Metro | P73: 93.33333333 | R73: 3 | S73: 3 | T73: 3 | U73: 3 | V73: 2 | W73: 3 | X73: 3 | AD73: 2047
A74: 2047 | B74: A | C74: Metro | D74: Metro | E74: 120 NSW Metro - Homebush | F74: Metro | G74: A Metro | H74: 1 | J74: 11950 | K74: 5.4 | O74: Metro | P74: 93.33333333 | R74: 3 | S74: 3 | T74: 3 | U74: 3 | V74: 2 | W74: 3 | X74: 3 | AD74: 2048
A75: 2048 | B75: A | C75: Metro | D75: Metro | E75: 117 NSW Metro - CBD & Inner South | F75: Metro | G75: A Metro | H75: 1 | J75: 7938 | K75: 4.7 | O75: Metro | P75: 86.66666667 | R75: 3 | S75: 3 | T75: 3 | U75: 3 | V75: 1 | W75: 3 | X75: 3 | AD75: 2049
A76: 2049 | B76: A | C76: Metro | D76: Metro | E76: 117 NSW Metro - CBD & Inner South | F76: Metro | G76: A Metro | H76: 1 | J76: 11282 | K76: 6 | O76: Metro | P76: 93.33333333 | R76: 3 | S76: 3 | T76: 3 | U76: 3 | V76: 2 | W76: 3 | X76: 3 | AD76: 2050
A77: 2050 | B77: A | C77: Metro | D77: Metro | E77: 117 NSW Metro - CBD & Inner South | F77: Metro | G77: A Metro | H77: 1 | J77: 8963 | K77: 4 | O77: Metro | P77: 86.66666667 | R77: 3 | S77: 3 | T77: 3 | U77: 3 | V77: 1 | W77: 3 | X77: 3 | AD77: 2060
A78: 2060 | B78: A | C78: Metro | D78: Metro | E78: 121 NSW Metro - Hornsby | F78: Metro | G78: A Metro | H78: 1 | J78: 13988 | K78: 3.3 | O78: Metro | P78: 93.33333333 | R78: 3 | S78: 3 | T78: 3 | U78: 3 | V78: 2 | W78: 3 | X78: 3 | AD78: 2061
A79: 2061 | B79: A | C79: Metro | D79: Metro | E79: 121 NSW Metro - Hornsby | F79: Metro | G79: A Metro | H79: 1 | J79: 5943 | K79: 2.4 | O79: Metro | P79: 86.66666667 | R79: 3 | S79: 3 | T79: 3 | U79: 3 | V79: 1 | W79: 3 | X79: 3 | AD79: 2062
A80: 2062 | B80: A | C80: Metro | D80: Metro | E80: 121 NSW Metro - Hornsby | F80: Metro | G80: A Metro | H80: 1 | J80: 7006 | K80: 5.2 | O80: Metro | P80: 86.66666667 | R80: 3 | S80: 3 | T80: 3 | U80: 3 | V80: 1 | W80: 3 | X80: 3 | AD80: 2063
A81: 2063 | B81: A | C81: Metro | D81: Metro | E81: 121 NSW Metro - Hornsby | F81: Metro | G81: A Metro | H81: 1 | J81: 6347 | K81: 6.4 | O81: Metro | P81: 86.66666667 | R81: 3 | S81: 3 | T81: 3 | U81: 3 | V81: 1 | W81: 3 | X81: 3 | AD81: 2064
A82: 2064 | B82: A | C82: Metro | D82: Metro | E82: 121 NSW Metro - Hornsby | F82: Metro | G82: A Metro | H82: 1 | J82: 9523 | K82: 7.1 | O82: Metro | P82: 86.66666667 | R82: 3 | S82: 3 | T82: 3 | U82: 3 | V82: 1 | W82: 3 | X82: 3 | AD82: 2065
A83: 2065 | B83: A | C83: Metro | D83: Metro | E83: 121 NSW Metro - Hornsby | F83: Metro | G83: A Metro | H83: 1 | J83: 30119 | K83: 5.1 | O83: Metro | P83: 93.33333333 | R83: 3 | S83: 3 | T83: 3 | U83: 3 | V83: 2 | W83: 3 | X83: 3 | AD83: 2066
A84: 2066 | B84: A | C84: Metro | D84: Metro | E84: 121 NSW Metro - Hornsby | F84: Metro | G84: A Metro | H84: 1 | J84: 31626 | K84: 7.5 | O84: Metro | P84: 93.33333333 | R84: 3 | S84: 3 | T84: 3 | U84: 3 | V84: 2 | W84: 3 | X84: 3 | AD84: 2067
A85: 2067 | B85: A | C85: Metro | D85: Metro | E85: 121 NSW Metro - Hornsby | F85: Metro | G85: A Metro | H85: 1 | J85: 26403 | K85: 8.6 | O85: Metro | P85: 93.33333333 | R85: 3 | S85: 3 | T85: 3 | U85: 3 | V85: 2 | W85: 3 | X85: 3 | AD85: 2068
A86: 2068 | B86: A | C86: Metro | D86: Metro | E86: 121 NSW Metro - Hornsby | F86: Metro | G86: A Metro | H86: 1 | J86: 16813 | K86: 7.5 | O86: Metro | P86: 93.33333333 | R86: 3 | S86: 3 | T86: 3 | U86: 3 | V86: 2 | W86: 3 | X86: 3 | AD86: 2069
A87: 2069 | B87: A | C87: Metro | D87: Metro | E87: 121 NSW Metro - Hornsby | F87: Metro | G87: A Metro | H87: 1 | J87: 14253 | K87: 9.7 | O87: Metro | P87: 93.33333333 | R87: 3 | S87: 3 | T87: 3 | U87: 3 | V87: 2 | W87: 3 | X87: 3 | AD87: 2070
A88: 2070 | B88: A | C88: Metro | D88: Metro | E88: 121 NSW Metro - Hornsby | F88: Metro | G88: A Metro | H88: 1 | J88: 13505 | K88: 11 | O88: Metro | P88: 93.33333333 | R88: 3 | S88: 3 | T88: 3 | U88: 3 | V88: 2 | W88: 3 | X88: 3 | AD88: 2071
A89: 2071 | B89: A | C89: Metro | D89: Metro | E89: 121 NSW Metro - Hornsby | F89: Metro | G89: A Metro | H89: 1 | J89: 13545 | K89: 12.4 | O89: Metro | P89: 93.33333333 | R89: 3 | S89: 3 | T89: 3 | U89: 3 | V89: 2 | W89: 3 | X89: 3 | AD89: 2072
A90: 2072 | B90: A | C90: Metro | D90: Metro | E90: 121 NSW Metro - Hornsby | F90: Metro | G90: A Metro | H90: 1 | J90: 7668 | K90: 13.6 | O90: Metro | P90: 86.66666667 | R90: 3 | S90: 3 | T90: 3 | U90: 3 | V90: 1 | W90: 3 | X90: 3 | AD90: 2073
A91: 2073 | B91: A | C91: Metro | D91: Metro | E91: 121 NSW Metro - Hornsby | F91: Metro | G91: A Metro | H91: 1 | J91: 16352 | K91: 15.1 | O91: Metro | P91: 93.33333333 | R91: 3 | S91: 3 | T91: 3 | U91: 3 | V91: 2 | W91: 3 | X91: 3 | AD91: 2074
A92: 2074 | B92: A | C92: Metro | D92: Metro | E92: 121 NSW Metro - Hornsby | F92: Metro | G92: A Metro | H92: 1 | J92: 22258 | K92: 17.1 | O92: Metro | P92: 93.33333333 | R92: 3 | S92: 3 | T92: 3 | U92: 3 | V92: 2 | W92: 3 | X92: 3 | AD92: 2075
A93: 2075 | B93: A | C93: Metro | D93: Metro | E93: 121 NSW Metro - Hornsby | F93: Metro | G93: A Metro | H93: 1 | J93: 20451 | K93: 16.4 | O93: Metro | P93: 93.33333333 | R93: 3 | S93: 3 | T93: 3 | U93: 3 | V93: 2 | W93: 3 | X93: 3 | AD93: 2076
A94: 2076 | B94: A | C94: Metro | D94: Metro | E94: 121 NSW Metro - Hornsby | F94: Metro | G94: A Metro | H94: 1 | J94: 24648 | K94: 18.9 | O94: Metro | P94: 93.33333333 | R94: 3 | S94: 3 | T94: 3 | U94: 3 | V94: 2 | W94: 3 | X94: 3 | AD94: 2077
A95: 2077 | B95: A | C95: Metro | D95: Metro | E95: 121 NSW Metro - Hornsby | F95: Metro | G95: A Metro | H95: 1 | J95: 37791 | K95: 22.5 | O95: Metro | P95: 93.33333333 | R95: 3 | S95: 3 | T95: 3 | U95: 3 | V95: 2 | W95: 3 | X95: 3 | AD95: 2079
A96: 2079 | B96: A | C96: Metro | D96: Metro | E96: 121 NSW Metro - Hornsby | F96: Metro | G96: A Metro | H96: 1 | J96: 7095 | K96: 23.9 | O96: Metro | P96: 86.66666667 | R96: 3 | S96: 3 | T96: 3 | U96: 3 | V96: 1 | W96: 3 | X96: 3 | AD96: 2080
A97: 2080 | B97: A | C97: Metro | D97: Metro | E97: 121 NSW Metro - Hornsby | F97: Metro | G97: A Metro | H97: 1 | J97: 1708 | K97: 24.5 | O97: Metro | P97: 80 | R97: 3 | S97: 3 | T97: 3 | U97: 3 | V97: 0 | W97: 3 | X97: 3 | AD97: 2081
A98: 2081 | B98: A | C98: Metro | D98: Metro | E98: 121 NSW Metro - Hornsby | F98: Metro | G98: A Metro | H98: 1 | J98: 5369 | K98: 28 | O98: Metro | P98: 83.33333333 | R98: 3 | S98: 3 | T98: 3 | U98: 3 | V98: 1 | W98: 2 | X98: 3 | AD98: 2082
A99: 2082 | B99: A | C99: Metro | D99: Metro | E99: 121 NSW Metro - Hornsby | F99: Metro | G99: A Metro | H99: 1 | J99: 5397 | K99: 30.2 | O99: Metro | P99: 83.33333333 | R99: 3 | S99: 3 | T99: 3 | U99: 3 | V99: 1 | W99: 2 | X99: 3 | AD99: 2083
A100: 2083 | B100: A | C100: Metro | D100: Metro | E100: 121 NSW Metro - Hornsby | F100: Metro | G100: A Metro | H100: 1 | J100: 1519 | K100: 37.8 | O100: Metro | P100: 76.66666667 | R100: 3 | S100: 3 | T100: 3 | U100: 3 | V100: 0 | W100: 2 | X100: 3 | AD100: 2084
A101: 2084 | B101: A | C101: Metro | D101: Metro | E101: 122 NSW Metro - North Shore | F101: Metro | G101: A Metro | H101: 1 | J101: 3625 | K101: 22.4 | O101: Metro | P101: 80 | R101: 3 | S101: 3 | T101: 3 | U101: 3 | V101: 0 | W101: 3 | X101: 3 | AD101: 2085
A102: 2085 | B102: A | C102: Metro | D102: Metro | E102: 122 NSW Metro - North Shore | F102: Metro | G102: A Metro | H102: 1 | J102: 11624 | K102: 16.5 | O102: Metro | P102: 93.33333333 | R102: 3 | S102: 3 | T102: 3 | U102: 3 | V102: 2 | W102: 3 | X102: 3 | AD102: 2086
A103: 2086 | B103: A | C103: Metro | D103: Metro | E103: 122 NSW Metro - North Shore | F103: Metro | G103: A Metro | H103: 1 | J103: 13414 | K103: 13.5 | O103: Metro | P103: 93.33333333 | R103: 3 | S103: 3 | T103: 3 | U103: 3 | V103: 2 | W103: 3 | X103: 3 | AD103: 2087
A104: 2087 | B104: A | C104: Metro | D104: Metro | E104: 122 NSW Metro - North Shore | F104: Metro | G104: A Metro | H104: 1 | J104: 12798 | K104: 11.8 | O104: Metro | P104: 93.33333333 | R104: 3 | S104: 3 | T104: 3 | U104: 3 | V104: 2 | W104: 3 | X104: 3 | AD104: 2088
A105: 2088 | B105: A | C105: Metro | D105: Metro | E105: 121 NSW Metro - Hornsby | F105: Metro | G105: A Metro | H105: 1 | J105: 28475 | K105: 5.5 | O105: Metro | P105: 93.33333333 | R105: 3 | S105: 3 | T105: 3 | U105: 3 | V105: 2 | W105: 3 | X105: 3 | AD105: 2089
A106: 2089 | B106: A | C106: Metro | D106: Metro | E106: 121 NSW Metro - Hornsby | F106: Metro | G106: A Metro | H106: 1 | J106: 11918 | K106: 3.8 | O106: Metro | P106: 93.33333333 | R106: 3 | S106: 3 | T106: 3 | U106: 3 | V106: 2 | W106: 3 | X106: 3 | AD106: 2090
A107: 2090 | B107: A | C107: Metro | D107: Metro | E107: 121 NSW Metro - Hornsby | F107: Metro | G107: A Metro | H107: 1 | J107: 13724 | K107: 4.7 | O107: Metro | P107: 93.33333333 | R107: 3 | S107: 3 | T107: 3 | U107: 3 | V107: 2 | W107: 3 | X107: 3 | AD107: 2092
A108: 2092 | B108: A | C108: Metro | D108: Metro | E108: 122 NSW Metro - North Shore | F108: Metro | G108: A Metro | H108: 1 | J108: 7139 | K108: 8.8 | O108: Metro | P108: 86.66666667 | R108: 3 | S108: 3 | T108: 3 | U108: 3 | V108: 1 | W108: 3 | X108: 3 | AD108: 2093
A109: 2093 | B109: A | C109: Metro | D109: Metro | E109: 122 NSW Metro - North Shore | F109: Metro | G109: A Metro | H109: 1 | J109: 22873 | K109: 10.2 | O109: Metro | P109: 93.33333333 | R109: 3 | S109: 3 | T109: 3 | U109: 3 | V109: 2 | W109: 3 | X109: 3 | AD109: 2094
A110: 2094 | B110: A | C110: Metro | D110: Metro | E110: 122 NSW Metro - North Shore | F110: Metro | G110: A Metro | H110: 1 | J110: 5840 | K110: 10.2 | O110: Metro | P110: 86.66666667 | R110: 3 | S110: 3 | T110: 3 | U110: 3 | V110: 1 | W110: 3 | X110: 3 | AD110: 2095
A111: 2095 | B111: A | C111: Metro | D111: Metro | E111: 122 NSW Metro - North Shore | F111: Metro | G111: A Metro | H111: 1 | J111: 15866 | K111: 10.8 | O111: Metro | P111: 93.33333333 | R111: 3 | S111: 3 | T111: 3 | U111: 3 | V111: 2 | W111: 3 | X111: 3 | AD111: 2096
A112: 2096 | B112: A | C112: Metro | D112: Metro | E112: 122 NSW Metro - North Shore | F112: Metro | G112: A Metro | H112: 1 | J112: 14657 | K112: 12.5 | O112: Metro | P112: 93.33333333 | R112: 3 | S112: 3 | T112: 3 | U112: 3 | V112: 2 | W112: 3 | X112: 3 | AD112: 2097
A113: 2097 | B113: A | C113: Metro | D113: Metro | E113: 122 NSW Metro - North Shore | F113: Metro | G113: A Metro | H113: 1 | J113: 15529 | K113: 17.5 | O113: Metro | P113: 93.33333333 | R113: 3 | S113: 3 | T113: 3 | U113: 3 | V113: 2 | W113: 3 | X113: 3 | AD113: 2099
A114: 2099 | B114: A | C114: Metro | D114: Metro | E114: 122 NSW Metro - North Shore | F114: Metro | G114: A Metro | H114: 1 | J114: 39925 | K114: 15 | O114: Metro | P114: 93.33333333 | R114: 3 | S114: 3 | T114: 3 | U114: 3 | V114: 2 | W114: 3 | X114: 3 | AD114: 2100
A115: 2100 | B115: A | C115: Metro | D115: Metro | E115: 122 NSW Metro - North Shore | F115: Metro | G115: A Metro | H115: 1 | J115: 20911 | K115: 13.1 | O115: Metro | P115: 93.33333333 | R115: 3 | S115: 3 | T115: 3 | U115: 3 | V115: 2 | W115: 3 | X115: 3 | AD115: 2101
A116: 2101 | B116: A | C116: Metro | D116: Metro | E116: 122 NSW Metro - North Shore | F116: Metro | G116: A Metro | H116: 1 | J116: 19395 | K116: 19.8 | O116: Metro | P116: 93.33333333 | R116: 3 | S116: 3 | T116: 3 | U116: 3 | V116: 2 | W116: 3 | X116: 3 | AD116: 2102
A117: 2102 | B117: A | C117: Metro | D117: Metro | E117: 122 NSW Metro - North Shore | F117: Metro | G117: A Metro | H117: 1 | J117: 7501 | K117: 21.6 | O117: Metro | P117: 86.66666667 | R117: 3 | S117: 3 | T117: 3 | U117: 3 | V117: 1 | W117: 3 | X117: 3 | AD117: 2103
A118: 2103 | B118: A | C118: Metro | D118: Metro | E118: 122 NSW Metro - North Shore | F118: Metro | G118: A Metro | H118: 1 | J118: 10670 | K118: 23.3 | O118: Metro | P118: 93.33333333 | R118: 3 | S118: 3 | T118: 3 | U118: 3 | V118: 2 | W118: 3 | X118: 3 | AD118: 2104
A119: 2104 | B119: A | C119: Metro | D119: Metro | E119: 122 NSW Metro - North Shore | F119: Metro | G119: A Metro | H119: 1 | J119: 3620 | K119: 24.3 | O119: Metro | P119: 80 | R119: 3 | S119: 3 | T119: 3 | U119: 3 | V119: 0 | W119: 3 | X119: 3 | AD119: 2105
A120: 2105 | B120: A | C120: Metro | D120: Metro | E120: 122 NSW Metro - North Shore | F120: Metro | G120: A Metro | H120: 1 | J120: 1848 | K120: 25.8 | O120: Metro | P120: 76.66666667 | R120: 3 | S120: 3 | T120: 3 | U120: 3 | V120: 0 | W120: 2 | X120: 3 | AD120: 2106
A121: 2106 | B121: A | C121: Metro | D121: Metro | E121: 122 NSW Metro - North Shore | F121: Metro | G121: A Metro | H121: 1 | J121: 9301 | K121: 25.5 | O121: Metro | P121: 83.33333333 | R121: 3 | S121: 3 | T121: 3 | U121: 3 | V121: 1 | W121: 2 | X121: 3 | AD121: 2107
A122: 2107 | B122: A | C122: Metro | D122: Metro | E122: 122 NSW Metro - North Shore | F122: Metro | G122: A Metro | H122: 1 | J122: 14669 | K122: 28.5 | O122: Metro | P122: 90 | R122: 3 | S122: 3 | T122: 3 | U122: 3 | V122: 2 | W122: 2 | X122: 3 | AD122: 2108
A123: 2108 | B123: A | C123: Metro | D123: Metro | E123: 122 NSW Metro - North Shore | F123: Metro | G123: A Metro | H123: 1 | J123: 1673 | K123: 31.3 | O123: Metro | P123: 76.66666667 | R123: 3 | S123: 3 | T123: 3 | U123: 3 | V123: 0 | W123: 2 | X123: 3 | AD123: 2110
A124: 2110 | B124: A | C124: Metro | D124: Metro | E124: 126 NSW Metro - Ryde | F124: Metro | G124: A Metro | H124: 1 | J124: 10343 | K124: 7 | O124: Metro | P124: 93.33333333 | R124: 3 | S124: 3 | T124: 3 | U124: 3 | V124: 2 | W124: 3 | X124: 3 | AD124: 2111
A125: 2111 | B125: A | C125: Metro | D125: Metro | E125: 126 NSW Metro - Ryde | F125: Metro | G125: A Metro | H125: 1 | J125: 14412 | K125: 8.7 | O125: Metro | P125: 93.33333333 | R125: 3 | S125: 3 | T125: 3 | U125: 3 | V125: 2 | W125: 3 | X125: 3 | AD125: 2112
A126: 2112 | B126: A | C126: Metro | D126: Metro | E126: 126 NSW Metro - Ryde | F126: Metro | G126: A Metro | H126: 1 | J126: 32852 | K126: 11.3 | O126: Metro | P126: 93.33333333 | R126: 3 | S126: 3 | T126: 3 | U126: 3 | V126: 2 | W126: 3 | X126: 3 | AD126: 2113
A127: 2113 | B127: A | C127: Metro | D127: Metro | E127: 126 NSW Metro - Ryde | F127: Metro | G127: A Metro | H127: 1 | J127: 18371 | K127: 11.9 | O127: Metro | P127: 93.33333333 | R127: 3 | S127: 3 | T127: 3 | U127: 3 | V127: 2 | W127: 3 | X127: 3 | AD127: 2114
A128: 2114 | B128: A | C128: Metro | D128: Metro | E128: 126 NSW Metro - Ryde | F128: Metro | G128: A Metro | H128: 1 | J128: 24057 | K128: 13.4 | O128: Metro | P128: 93.33333333 | R128: 3 | S128: 3 | T128: 3 | U128: 3 | V128: 2 | W128: 3 | X128: 3 | AD128: 2115
A129: 2115 | B129: A | C129: Metro | D129: Metro | E129: 125 NSW Metro - Parramatta | F129: Metro | G129: A Metro | H129: 1 | J129: 10737 | K129: 15.2 | O129: Metro | P129: 93.33333333 | R129: 3 | S129: 3 | T129: 3 | U129: 3 | V129: 2 | W129: 3 | X129: 3 | AD129: 2116
A130: 2116 | B130: A | C130: Metro | D130: Metro | E130: 125 NSW Metro - Parramatta | F130: Metro | G130: A Metro | H130: 1 | J130: 6642 | K130: 16.5 | O130: =IF(ISBLANK(N130),IF(AND(H130<>"",IF(I130="High Density","High Density",IF(AND(P130<=45,P130>0),"Refer to Distribution Partner",IF(AND(P130<=55,P130>45),"Regional",IF(AND(P130>55,P130<=70),"Non Metro",IF(F130="Nonmetro","Non Metro",IF(P130>70,"Metro",""))))))="Refer to Distribution Partner"),"Regional",IF(I130="High Density","High Density",IF(AND(P130<=45,P130>0),"Refer to Distribution Partner",IF(AND(P130<=55,P130>45),"Regional",IF(AND(P130>55,P130<=70),"Non Metro",IF(F130="Nonmetro","Non Metro",IF(P130>70,"Metro",""))))))),N130) -> Metro | P130: =(R130/$AB$3*$AA$3+S130/$AB$4*$AA$4+T130/$AB$5*$AA$5+U130/$AB$6*$AA$6+V130/$AB$7*$AA$7+W130/$AB$8*$AA$8+X130/$AB$9*$AA$9)*100 -> 86.66666667 | R130: =IF(ISNUMBER(SEARCH("Metro",E130)),3,IF(ISNUMBER(SEARCH("Rural",E130)),2,1)) -> 3 | S130: =IF(ISNUMBER(FIND("Metro",F130)),3,IF(ISNUMBER(FIND("Nonmetro",F130)),2,3)) -> 3 | T130: =IF(G130="A Metro",3,IF(G130="B Regional",2,IF(G130="C Pop > 7,000",1,IF(G130="D Pop > 2,000",1,0)))) -> 3 | U130: =IF(H130=1,3,IF(H130=2,2,IF(H130=3,1,0))) -> 3 | V130: =IF(J130>=100000,3,IF(AND(J130>=10000,J130<100000),2,IF(AND(J130>=5000,J130<10000),1,0))) -> 1 | W130: =IF(AND(K130>=0.1,K130<25),3,IF(AND(K130>=25,K130<50),2,IF(AND(K130>=50,K130<150),1,0))) -> 3 | X130: =IF(L130="",3,0) -> 3 | AD130: 2117
A131: 2117 | B131: A | C131: Metro | D131: Metro | E131: 125 NSW Metro - Parramatta | F131: Metro | G131: A Metro | H131: 1 | J131: 21285 | K131: 17.4 | O131: Metro | P131: 93.33333333 | R131: 3 | S131: 3 | T131: 3 | U131: 3 | V131: 2 | W131: 3 | X131: 3 | AD131: 2118
A132: 2118 | B132: A | C132: Metro | D132: Metro | E132: 125 NSW Metro - Parramatta | F132: Metro | G132: A Metro | H132: 1 | J132: 24341 | K132: 18.1 | O132: Metro | P132: 93.33333333 | R132: 3 | S132: 3 | T132: 3 | U132: 3 | V132: 2 | W132: 3 | X132: 3 | AD132: 2119
A133: 2119 | B133: A | C133: Metro | D133: Metro | E133: 126 NSW Metro - Ryde | F133: Metro | G133: A Metro | H133: 1 | J133: 11643 | K133: 18.7 | O133: Metro | P133: 93.33333333 | R133: 3 | S133: 3 | T133: 3 | U133: 3 | V133: 2 | W133: 3 | X133: 3 | AD133: 2120
A134: 2120 | B134: A | C134: Metro | D134: Metro | E134: 121 NSW Metro - Hornsby | F134: Metro | G134: A Metro | H134: 1 | J134: 20208 | K134: 20 | O134: Metro | P134: 93.33333333 | R134: 3 | S134: 3 | T134: 3 | U134: 3 | V134: 2 | W134: 3 | X134: 3 | AD134: 2121
A135: 2121 | B135: A | C135: Metro | D135: Metro | E135: 126 NSW Metro - Ryde | F135: Metro | G135: A Metro | H135: 1 | J135: 28214 | K135: 16.2 | O135: Metro | P135: 93.33333333 | R135: 3 | S135: 3 | T135: 3 | U135: 3 | V135: 2 | W135: 3 | X135: 3 | AD135: 2122
A136: 2122 | B136: A | C136: Metro | D136: Metro | E136: 126 NSW Metro - Ryde | F136: Metro | G136: A Metro | H136: 1 | J136: 31160 | K136: 14.5 | O136: Metro | P136: 93.33333333 | R136: 3 | S136: 3 | T136: 3 | U136: 3 | V136: 2 | W136: 3 | X136: 3 | AD136: 2125
A137: 2125 | B137: A | C137: Metro | D137: Metro | E137: 115 NSW Metro - Hawkesbury | F137: Metro | G137: A Metro | H137: 1 | J137: 16374 | K137: 20.9 | O137: Metro | P137: 93.33333333 | R137: 3 | S137: 3 | T137: 3 | U137: 3 | V137: 2 | W137: 3 | X137: 3 | AD137: 2126
A138: 2126 | B138: A | C138: Metro | D138: Metro | E138: 115 NSW Metro - Hawkesbury | F138: Metro | G138: A Metro | H138: 1 | J138: 18765 | K138: 22.1 | O138: Metro | P138: 93.33333333 | R138: 3 | S138: 3 | T138: 3 | U138: 3 | V138: 2 | W138: 3 | X138: 3 | AD138: 2127
A139: 2127 | B139: A | C139: Metro | D139: Metro | E139: 125 NSW Metro - Parramatta | F139: Metro | G139: A Metro | H139: 1 | I139: High Density | J139: 14532 | K139: 14.7 | O139: High Density | P139: 93.33333333 | R139: 3 | S139: 3 | T139: 3 | U139: 3 | V139: 2 | W139: 3 | X139: 3 | AD139: 2128
A140: 2128 | B140: A | C140: Metro | D140: Metro | E140: 125 NSW Metro - Parramatta | F140: Metro | G140: A Metro | H140: 1 | J140: 4166 | K140: 15.5 | O140: Metro | P140: 80 | R140: 3 | S140: 3 | T140: 3 | U140: 3 | V140: 0 | W140: 3 | X140: 3 | AD140: 2130
A141: 2130 | B141: A | C141: Metro | D141: Metro | E141: 120 NSW Metro - Homebush | F141: Metro | G141: A Metro | H141: 1 | J141: 7311 | K141: 7.1 | O141: Metro | P141: 86.66666667 | R141: 3 | S141: 3 | T141: 3 | U141: 3 | V141: 1 | W141: 3 | X141: 3 | AD141: 2131
A142: 2131 | B142: A | C142: Metro | D142: Metro | E142: 120 NSW Metro - Homebush | F142: Metro | G142: A Metro | H142: 1 | J142: 23841 | K142: 8 | O142: Metro | P142: 93.33333333 | R142: 3 | S142: 3 | T142: 3 | U142: 3 | V142: 2 | W142: 3 | X142: 3 | AD142: 2132
A143: 2132 | B143: A | C143: Metro | D143: Metro | E143: 120 NSW Metro - Homebush | F143: Metro | G143: A Metro | H143: 1 | J143: 10612 | K143: 8.7 | O143: Metro | P143: 93.33333333 | R143: 3 | S143: 3 | T143: 3 | U143: 3 | V143: 2 | W143: 3 | X143: 3 | AD143: 2133
A144: 2133 | B144: A | C144: Metro | D144: Metro | E144: 120 NSW Metro - Homebush | F144: Metro | G144: A Metro | H144: 1 | J144: 11012 | K144: 10.2 | O144: Metro | P144: 93.33333333 | R144: 3 | S144: 3 | T144: 3 | U144: 3 | V144: 2 | W144: 3 | X144: 3 | AD144: 2134
A145: 2134 | B145: A | C145: Metro | D145: Metro | E145: 120 NSW Metro - Homebush | F145: Metro | G145: A Metro | H145: 1 | J145: 16033 | K145: 9.8 | O145: Metro | P145: 93.33333333 | R145: 3 | S145: 3 | T145: 3 | U145: 3 | V145: 2 | W145: 3 | X145: 3 | AD145: 2135
A146: 2135 | B146: A | C146: Metro | D146: Metro | E146: 120 NSW Metro - Homebush | F146: Metro | G146: A Metro | H146: 1 | J146: 25251 | K146: 11.7 | O146: Metro | P146: 93.33333333 | R146: 3 | S146: 3 | T146: 3 | U146: 3 | V146: 2 | W146: 3 | X146: 3 | AD146: 2136
A147: 2136 | B147: A | C147: Metro | D147: Metro | E147: 120 NSW Metro - Homebush | F147: Metro | G147: A Metro | H147: 1 | J147: 7364 | K147: 11.4 | O147: Metro | P147: 86.66666667 | R147: 3 | S147: 3 | T147: 3 | U147: 3 | V147: 1 | W147: 3 | X147: 3 | AD147: 2137
A148: 2137 | B148: A | C148: Metro | D148: Metro | E148: 120 NSW Metro - Homebush | F148: Metro | G148: A Metro | H148: 1 | J148: 26507 | K148: 9.7 | O148: Metro | P148: 93.33333333 | R148: 3 | S148: 3 | T148: 3 | U148: 3 | V148: 2 | W148: 3 | X148: 3 | AD148: 2138
A149: 2138 | B149: A | C149: Metro | D149: Metro | E149: 120 NSW Metro - Homebush | F149: Metro | G149: A Metro | H149: 1 | J149: 20023 | K149: 12 | O149: Metro | P149: 93.33333333 | R149: 3 | S149: 3 | T149: 3 | U149: 3 | V149: 2 | W149: 3 | X149: 3 | AD149: 2140
A150: 2140 | B150: A | C150: Metro | D150: Metro | E150: 120 NSW Metro - Homebush | F150: Metro | G150: A Metro | H150: 1 | J150: 16167 | K150: 12.1 | O150: Metro | P150: 93.33333333 | R150: 3 | S150: 3 | T150: 3 | U150: 3 | V150: 2 | W150: 3 | X150: 3 | AD150: 2141
A151: 2141 | B151: A | C151: Metro | D151: Metro | E151: 125 NSW Metro - Parramatta | F151: Metro | G151: A Metro | H151: 1 | J151: 28675 | K151: 15.3 | O151: Metro | P151: 93.33333333 | R151: 3 | S151: 3 | T151: 3 | U151: 3 | V151: 2 | W151: 3 | X151: 3 | AD151: 2142
A152: 2142 | B152: A | C152: Metro | D152: Metro | E152: 125 NSW Metro - Parramatta | F152: Metro | G152: A Metro | H152: 1 | J152: 26292 | K152: 18.9 | O152: Metro | P152: 93.33333333 | R152: 3 | S152: 3 | T152: 3 | U152: 3 | V152: 2 | W152: 3 | X152: 3 | AD152: 2143
A153: 2143 | B153: A | C153: Metro | D153: Metro | E153: 125 NSW Metro - Parramatta | F153: Metro | G153: A Metro | H153: 1 | J153: 8921 | K153: 16.9 | O153: Metro | P153: 86.66666667 | R153: 3 | S153: 3 | T153: 3 | U153: 3 | V153: 1 | W153: 3 | X153: 3 | AD153: 2144
A154: 2144 | B154: A | C154: Metro | D154: Metro | E154: 125 NSW Metro - Parramatta | F154: Metro | G154: A Metro | H154: 1 | J154: 37366 | K154: 16.8 | O154: Metro | P154: 93.33333333 | R154: 3 | S154: 3 | T154: 3 | U154: 3 | V154: 2 | W154: 3 | X154: 3 | AD154: 2145
A155: 2145 | B155: A | C155: Metro | D155: Metro | E155: 125 NSW Metro - Parramatta | F155: Metro | G155: A Metro | H155: 1 | J155: 79211 | K155: 24.1 | O155: Metro | P155: 93.33333333 | R155: 3 | S155: 3 | T155: 3 | U155: 3 | V155: 2 | W155: 3 | X155: 3 | AD155: 2146
A156: 2146 | B156: A | C156: Metro | D156: Metro | E156: 125 NSW Metro - Parramatta | F156: Metro | G156: A Metro | H156: 1 | J156: 17465 | K156: 25.5 | O156: Metro | P156: 90 | R156: 3 | S156: 3 | T156: 3 | U156: 3 | V156: 2 | W156: 2 | X156: 3 | AD156: 2147
A157: 2147 | B157: A | C157: Metro | D157: Metro | E157: 116 NSW Metro - Blacktown | F157: Metro | G157: A Metro | H157: 1 | J157: 36341 | K157: 27.7 | O157: Metro | P157: 90 | R157: 3 | S157: 3 | T157: 3 | U157: 3 | V157: 2 | W157: 2 | X157: 3 | AD157: 2148
A158: 2148 | B158: A | C158: Metro | D158: Metro | E158: 116 NSW Metro - Blacktown | F158: Metro | G158: A Metro | H158: 1 | J158: 63071 | K158: 30.4 | O158: Metro | P158: 90 | R158: 3 | S158: 3 | T158: 3 | U158: 3 | V158: 2 | W158: 2 | X158: 3 | AD158: 2150
A159: 2150 | B159: A | C159: Metro | D159: Metro | E159: 125 NSW Metro - Parramatta | F159: Metro | G159: A Metro | H159: 1 | I159: High Density | J159: 31500 | K159: 19.4 | O159: High Density | P159: 93.33333333 | R159: 3 | S159: 3 | T159: 3 | U159: 3 | V159: 2 | W159: 3 | X159: 3 | AD159: 2151
A160: 2151 | B160: A | C160: Metro | D160: Metro | E160: 125 NSW Metro - Parramatta | F160: Metro | G160: A Metro | H160: 1 | J160: 21306 | K160: 20.1 | O160: Metro | P160: 93.33333333 | R160: 3 | S160: 3 | T160: 3 | U160: 3 | V160: 2 | W160: 3 | X160: 3 | AD160: 2152
A161: 2152 | B161: A | C161: Metro | D161: Metro | E161: 125 NSW Metro - Parramatta | F161: Metro | G161: A Metro | H161: 1 | J161: 11215 | K161: 21.6 | O161: Metro | P161: 93.33333333 | R161: 3 | S161: 3 | T161: 3 | U161: 3 | V161: 2 | W161: 3 | X161: 3 | AD161: 2153
A162: 2153 | B162: A | C162: Metro | D162: Metro | E162: 115 NSW Metro - Hawkesbury | F162: Metro | G162: A Metro | H162: 1 | J162: 56562 | K162: 24.9 | O162: Metro | P162: 93.33333333 | R162: 3 | S162: 3 | T162: 3 | U162: 3 | V162: 2 | W162: 3 | X162: 3 | AD162: 2154
A163: 2154 | B163: A | C163: Metro | D163: Metro | E163: 115 NSW Metro - Hawkesbury | F163: Metro | G163: A Metro | H163: 1 | J163: 39594 | K163: 24.7 | O163: Metro | P163: 93.33333333 | R163: 3 | S163: 3 | T163: 3 | U163: 3 | V163: 2 | W163: 3 | X163: 3 | AD163: 2155
A164: 2155 | B164: A | C164: Metro | D164: Metro | E164: 115 NSW Metro - Hawkesbury | F164: Metro | G164: A Metro | H164: 1 | I164: High Density | J164: 55452 | K164: 31 | O164: High Density | P164: 90 | R164: 3 | S164: 3 | T164: 3 | U164: 3 | V164: 2 | W164: 2 | X164: 3 | AD164: 2156
A165: 2156 | B165: A | C165: Metro | D165: Metro | E165: 115 NSW Metro - Hawkesbury | F165: Metro | G165: A Metro | H165: 1 | J165: 12942 | K165: 29.2 | O165: Metro | P165: 90 | R165: 3 | S165: 3 | T165: 3 | U165: 3 | V165: 2 | W165: 2 | X165: 3 | AD165: 2157
A166: 2157 | B166: A | C166: Metro | D166: Metro | E166: 115 NSW Metro - Hawkesbury | F166: Metro | G166: A Metro | H166: 1 | J166: 3741 | K166: 36.9 | O166: Metro | P166: 76.66666667 | R166: 3 | S166: 3 | T166: 3 | U166: 3 | V166: 0 | W166: 2 | X166: 3 | AD166: 2158
A167: 2158 | B167: A | C167: Metro | D167: Metro | E167: 115 NSW Metro - Hawkesbury | F167: Metro | G167: A Metro | H167: 1 | J167: 8575 | K167: 26 | O167: Metro | P167: 83.33333333 | R167: 3 | S167: 3 | T167: 3 | U167: 3 | V167: 1 | W167: 2 | X167: 3 | AD167: 2159
A168: 2159 | B168: A | C168: Metro | D168: Metro | E168: 115 NSW Metro - Hawkesbury | F168: Metro | G168: A Metro | H168: 1 | J168: 4975 | K168: 29.4 | O168: Metro | P168: 76.66666667 | R168: 3 | S168: 3 | T168: 3 | U168: 3 | V168: 0 | W168: 2 | X168: 3 | AD168: 2160
A169: 2160 | B169: A | C169: Metro | D169: Metro | E169: 125 NSW Metro - Parramatta | F169: Metro | G169: A Metro | H169: 1 | J169: 35973 | K169: 21.1 | O169: Metro | P169: 93.33333333 | R169: 3 | S169: 3 | T169: 3 | U169: 3 | V169: 2 | W169: 3 | X169: 3 | AD169: 2161
A170: 2161 | B170: A | C170: Metro | D170: Metro | E170: 125 NSW Metro - Parramatta | F170: Metro | G170: A Metro | H170: 1 | J170: 31418 | K170: 20.9 | O170: Metro | P170: 93.33333333 | R170: 3 | S170: 3 | T170: 3 | U170: 3 | V170: 2 | W170: 3 | X170: 3 | AD170: 2162
A171: 2162 | B171: A | C171: Metro | D171: Metro | E171: 125 NSW Metro - Parramatta | F171: Metro | G171: A Metro | H171: 1 | J171: 18622 | K171: 19.1 | O171: Metro | P171: 93.33333333 | R171: 3 | S171: 3 | T171: 3 | U171: 3 | V171: 2 | W171: 3 | X171: 3 | AD171: 2163
A172: 2163 | B172: A | C172: Metro | D172: Metro | E172: 125 NSW Metro - Parramatta | F172: Metro | G172: A Metro | H172: 1 | J172: 9590 | K172: 22.2 | O172: Metro | P172: 86.66666667 | R172: 3 | S172: 3 | T172: 3 | U172: 3 | V172: 1 | W172: 3 | X172: 3 | AD172: 2164
A173: 2164 | B173: A | C173: Metro | D173: Metro | E173: 127 NSW Metro - Liverpool | F173: Metro | G173: A Metro | H173: 1 | J173: 19624 | K173: 26 | O173: Metro | P173: 90 | R173: 3 | S173: 3 | T173: 3 | U173: 3 | V173: 2 | W173: 2 | X173: 3 | AD173: 2165
A174: 2165 | B174: A | C174: Metro | D174: Metro | E174: 127 NSW Metro - Liverpool | F174: Metro | G174: A Metro | H174: 1 | J174: 42444 | K174: 24.7 | O174: Metro | P174: 93.33333333 | R174: 3 | S174: 3 | T174: 3 | U174: 3 | V174: 2 | W174: 3 | X174: 3 | AD174: 2166
A175: 2166 | B175: A | C175: Metro | D175: Metro | E175: 127 NSW Metro - Liverpool | F175: Metro | G175: A Metro | H175: 1 | J175: 52762 | K175: 25.7 | O175: Metro | P175: 90 | R175: 3 | S175: 3 | T175: 3 | U175: 3 | V175: 2 | W175: 2 | X175: 3 | AD175: 2167
A176: 2167 | B176: A | C176: Metro | D176: Metro | E176: 123 NSW Metro - Campbelltown | F176: Metro | G176: A Metro | H176: 1 | J176: 9633 | K176: 31.1 | O176: Metro | P176: 83.33333333 | R176: 3 | S176: 3 | T176: 3 | U176: 3 | V176: 1 | W176: 2 | X176: 3 | AD176: 2168
A177: 2168 | B177: A | C177: Metro | D177: Metro | E177: 127 NSW Metro - Liverpool | F177: Metro | G177: A Metro | H177: 1 | J177: 43451 | K177: 31 | O177: Metro | P177: 90 | R177: 3 | S177: 3 | T177: 3 | U177: 3 | V177: 2 | W177: 2 | X177: 3 | AD177: 2170
A178: 2170 | B178: A | C178: Metro | D178: Metro | E178: 127 NSW Metro - Liverpool | F178: Metro | G178: A Metro | H178: 1 | J178: 105451 | K178: 28.3 | O178: Metro | P178: 96.66666667 | R178: 3 | S178: 3 | T178: 3 | U178: 3 | V178: 3 | W178: 2 | X178: 3 | AD178: 2171
A179: 2171 | B179: A | C179: Metro | D179: Metro | E179: 127 NSW Metro - Liverpool | F179: Metro | G179: A Metro | H179: 1 | J179: 34866 | K179: 34.1 | O179: Metro | P179: 90 | R179: 3 | S179: 3 | T179: 3 | U179: 3 | V179: 2 | W179: 2 | X179: 3 | AD179: 2172
A180: 2172 | B180: A | C180: Metro | D180: Metro | E180: 127 NSW Metro - Liverpool | F180: Metro | G180: A Metro | H180: 1 | J180: 2781 | K180: 23.6 | O180: Metro | P180: 80 | R180: 3 | S180: 3 | T180: 3 | U180: 3 | V180: 0 | W180: 3 | X180: 3 | AD180: 2173
A181: 2173 | B181: A | C181: Metro | D181: Metro | E181: 127 NSW Metro - Liverpool | F181: Metro | G181: A Metro | H181: 1 | J181: 14433 | K181: 26.3 | O181: Metro | P181: 90 | R181: 3 | S181: 3 | T181: 3 | U181: 3 | V181: 2 | W181: 2 | X181: 3 | AD181: 2174
A182: 2174 | B182: A | C182: Metro | D182: Metro | E182: 127 NSW Metro - Liverpool | F182: Metro | G182: A Metro | H182: 1 | J182: 2267 | K182: 34.1 | O182: Metro | P182: 76.66666667 | R182: 3 | S182: 3 | T182: 3 | U182: 3 | V182: 0 | W182: 2 | X182: 3 | AD182: 2175
A183: 2175 | B183: A | C183: Metro | D183: Metro | E183: 127 NSW Metro - Liverpool | F183: Metro | G183: A Metro | H183: 1 | J183: 1837 | K183: 33.4 | O183: Metro | P183: 76.66666667 | R183: 3 | S183: 3 | T183: 3 | U183: 3 | V183: 0 | W183: 2 | X183: 3 | AD183: 2176
A184: 2176 | B184: A | C184: Metro | D184: Metro | E184: 127 NSW Metro - Liverpool | F184: Metro | G184: A Metro | H184: 1 | J184: 47809 | K184: 29.5 | O184: Metro | P184: 90 | R184: 3 | S184: 3 | T184: 3 | U184: 3 | V184: 2 | W184: 2 | X184: 3 | AD184: 2177
A185: 2177 | B185: A | C185: Metro | D185: Metro | E185: 127 NSW Metro - Liverpool | F185: Metro | G185: A Metro | H185: 1 | J185: 15979 | K185: 30.3 | O185: Metro | P185: 90 | R185: 3 | S185: 3 | T185: 3 | U185: 3 | V185: 2 | W185: 2 | X185: 3 | AD185: 2178
A186: 2178 | B186: A | C186: Metro | D186: Metro | E186: 127 NSW Metro - Liverpool | F186: Metro | G186: A Metro | H186: 1 | J186: 4230 | K186: 37.3 | O186: Metro | P186: 76.66666667 | R186: 3 | S186: 3 | T186: 3 | U186: 3 | V186: 0 | W186: 2 | X186: 3 | AD186: 2179
A187: 2179 | B187: A | C187: Metro | D187: Metro | E187: 127 NSW Metro - Liverpool | F187: Metro | G187: A Metro | H187: 1 | J187: 6530 | K187: 38.1 | O187: Metro | P187: 83.33333333 | R187: 3 | S187: 3 | T187: 3 | U187: 3 | V187: 1 | W187: 2 | X187: 3 | AD187: 2190
A188: 2190 | B188: A | C188: Metro | D188: Metro | E188: 119 NSW Metro - Bankstown | F188: Metro | G188: A Metro | H188: 1 | J188: 25566 | K188: 15 | O188: Metro | P188: 93.33333333 | R188: 3 | S188: 3 | T188: 3 | U188: 3 | V188: 2 | W188: 3 | X188: 3 | AD188: 2191
A189: 2191 | B189: A | C189: Metro | D189: Metro | E189: 119 NSW Metro - Bankstown | F189: Metro | G189: A Metro | H189: 1 | J189: 6322 | K189: 11.9 | O189: Metro | P189: 86.66666667 | R189: 3 | S189: 3 | T189: 3 | U189: 3 | V189: 1 | W189: 3 | X189: 3 | AD189: 2192
A190: 2192 | B190: A | C190: Metro | D190: Metro | E190: 119 NSW Metro - Bankstown | F190: Metro | G190: A Metro | H190: 1 | J190: 12718 | K190: 12.4 | O190: Metro | P190: 93.33333333 | R190: 3 | S190: 3 | T190: 3 | U190: 3 | V190: 2 | W190: 3 | X190: 3 | AD190: 2193
A191: 2193 | B191: A | C191: Metro | D191: Metro | E191: 120 NSW Metro - Homebush | F191: Metro | G191: A Metro | H191: 1 | J191: 15256 | K191: 9.3 | O191: Metro | P191: 93.33333333 | R191: 3 | S191: 3 | T191: 3 | U191: 3 | V191: 2 | W191: 3 | X191: 3 | AD191: 2194
A192: 2194 | B192: A | C192: Metro | D192: Metro | E192: 119 NSW Metro - Bankstown | F192: Metro | G192: A Metro | H192: 1 | J192: 24541 | K192: 11.1 | O192: Metro | P192: 93.33333333 | R192: 3 | S192: 3 | T192: 3 | U192: 3 | V192: 2 | W192: 3 | X192: 3 | AD192: 2195
A193: 2195 | B193: A | C193: Metro | D193: Metro | E193: 119 NSW Metro - Bankstown | F193: Metro | G193: A Metro | H193: 1 | J193: 27154 | K193: 14 | O193: Metro | P193: 93.33333333 | R193: 3 | S193: 3 | T193: 3 | U193: 3 | V193: 2 | W193: 3 | X193: 3 | AD193: 2196
A194: 2196 | B194: A | C194: Metro | D194: Metro | E194: 119 NSW Metro - Bankstown | F194: Metro | G194: A Metro | H194: 1 | J194: 31815 | K194: 15.2 | O194: =IF(ISBLANK(N194),IF(AND(H194<>"",IF(I194="High Density","High Density",IF(AND(P194<=45,P194>0),"Refer to Distribution Partner",IF(AND(P194<=55,P194>45),"Regional",IF(AND(P194>55,P194<=70),"Non Metro",IF(F194="Nonmetro","Non Metro",IF(P194>70,"Metro",""))))))="Refer to Distribution Partner"),"Regional",IF(I194="High Density","High Density",IF(AND(P194<=45,P194>0),"Refer to Distribution Partner",IF(AND(P194<=55,P194>45),"Regional",IF(AND(P194>55,P194<=70),"Non Metro",IF(F194="Nonmetro","Non Metro",IF(P194>70,"Metro",""))))))),N194) -> Metro | P194: =(R194/$AB$3*$AA$3+S194/$AB$4*$AA$4+T194/$AB$5*$AA$5+U194/$AB$6*$AA$6+V194/$AB$7*$AA$7+W194/$AB$8*$AA$8+X194/$AB$9*$AA$9)*100 -> 93.33333333 | R194: =IF(ISNUMBER(SEARCH("Metro",E194)),3,IF(ISNUMBER(SEARCH("Rural",E194)),2,1)) -> 3 | S194: =IF(ISNUMBER(FIND("Metro",F194)),3,IF(ISNUMBER(FIND("Nonmetro",F194)),2,3)) -> 3 | T194: =IF(G194="A Metro",3,IF(G194="B Regional",2,IF(G194="C Pop > 7,000",1,IF(G194="D Pop > 2,000",1,0)))) -> 3 | U194: =IF(H194=1,3,IF(H194=2,2,IF(H194=3,1,0))) -> 3 | V194: =IF(J194>=100000,3,IF(AND(J194>=10000,J194<100000),2,IF(AND(J194>=5000,J194<10000),1,0))) -> 2 | W194: =IF(AND(K194>=0.1,K194<25),3,IF(AND(K194>=25,K194<50),2,IF(AND(K194>=50,K194<150),1,0))) -> 3 | X194: =IF(L194="",3,0) -> 3 | AD194: 2197
A195: 2197 | B195: A | C195: Metro | D195: Metro | E195: 119 NSW Metro - Bankstown | F195: Metro | G195: A Metro | H195: 1 | J195: 9069 | K195: 19.9 | O195: Metro | P195: 86.66666667 | R195: 3 | S195: 3 | T195: 3 | U195: 3 | V195: 1 | W195: 3 | X195: 3 | AD195: 2198
A196: 2198 | B196: A | C196: Metro | D196: Metro | E196: 119 NSW Metro - Bankstown | F196: Metro | G196: A Metro | H196: 1 | J196: 9038 | K196: 20.8 | O196: Metro | P196: 86.66666667 | R196: 3 | S196: 3 | T196: 3 | U196: 3 | V196: 1 | W196: 3 | X196: 3 | AD196: 2199
A197: 2199 | B197: A | C197: Metro | D197: Metro | E197: 119 NSW Metro - Bankstown | F197: Metro | G197: A Metro | H197: 1 | J197: 18013 | K197: 18 | O197: Metro | P197: 93.33333333 | R197: 3 | S197: 3 | T197: 3 | U197: 3 | V197: 2 | W197: 3 | X197: 3 | AD197: 2200
A198: 2200 | B198: A | C198: Metro | D198: Metro | E198: 119 NSW Metro - Bankstown | F198: Metro | G198: A Metro | H198: 1 | J198: 43687 | K198: 18.2 | O198: Metro | P198: 93.33333333 | R198: 3 | S198: 3 | T198: 3 | U198: 3 | V198: 2 | W198: 3 | X198: 3 | AD198: 2203
A199: 2203 | B199: A | C199: Metro | D199: Metro | E199: 120 NSW Metro - Homebush | F199: Metro | G199: A Metro | H199: 1 | J199: 13707 | K199: 7.4 | O199: Metro | P199: 93.33333333 | R199: 3 | S199: 3 | T199: 3 | U199: 3 | V199: 2 | W199: 3 | X199: 3 | AD199: 2204
A200: 2204 | B200: A | C200: Metro | D200: Metro | E200: 117 NSW Metro - CBD & Inner South | F200: Metro | G200: A Metro | H200: 1 | J200: 26502 | K200: 7.1 | O200: Metro | P200: 93.33333333 | R200: 3 | S200: 3 | T200: 3 | U200: 3 | V200: 2 | W200: 3 | X200: 3 | AD200: 2205
... 2446 more rows

Sheet Score Guide (hidden)
A1: 1 | B1: Geographic Region | C1: Contain Metro | D1: Contain Rural | E1: Unknown
C2: 3 | D2: 2 | E2: 1
A3: 2 | B3: S&P Rating | C3: Metro/inner City | D3: Non Metro
C4: 3 | D4: 2
A5: 3 | B5: La Trobe Risk Location | C5: A | D5: B | E5: C/D | F5: E/F
C6: 3 | D6: 2 | E6: 1 | F6: 0
A7: 4 | B7: Origin | C7: 1 | D7: 2 | E7: 3 | F7: blank
C8: 3 | D8: 2 | E8: 1 | F8: 0
A9: 5 | B9: Population ABS 2016 | C9: Major Cities (100000+) | D9: Large Towns 50000-100000 | E9: Medium Towns (10000-50000) | F9: Small towns | K9: Population ABS 2016
F10: 5000-10000 | G10: 1000-5000 | H10: less than 1000 | K10: 0 | L10: 5
C11: 3 | D11: 2 | E11: 2 | F11: 1 | G11: 0 | H11: 0 | K11: 1000 | L11: 822
A12: 6 | B12: Distance from PO | C12: 25 | D12: 25-50 | E12: 50 - 150 | F12: other or 0 | K12: 5000 | L12: 671
C13: 3 | D13: 2 | E13: 1 | F13: 0 | K13: 10000 | L13: 334
A14: 7 | B14: Mining | C14: Empty | D14: Mining | K14: 50000 | L14: 767
C15: 3 | D15: 0 | K15: 100000 | L15: 42
K16: 150000 | L16: 3
H18: Distance from PO
H19: 0 | I19: 536
H20: 25 | I20: 627
H21: 50 | I21: 262
H22: 150 | I22: 456
H23: Other | I23: 763

Sheet Quick Reference Guide
A2: Postcode Quick Reference Guide
C4: High Density | D4: Metro | F4: Non Metro | H4: Regional
A6: New South Wales
F7: 2006 | G7: 2477-2481
F8: 2250-2251 | G8: 2483-2490 | H8: 2326 | I8: 2555
F9: 2256-2265 | G9: 2500 | H9: 2334-2335 | I9: 2578-2579
D10: 2007-2011 | E10: 2190-2200 | F10: 2267 | G10: 2502 | H10: 2360 | I10: 2582-2583
D11: 2015-2016 | E11: 2203-2214 | F11: 2278 | G11: 2505-2506 | H11: 2380 | I11: 2594
D12: 2018-2050 | E12: 2216-2234 | F12: 2280-2287 | G12: 2508 | H12: 2400 | I12: 2628
D13: 2060-2077 | E13: 2558-2560 | F13: 2289-2300 | G13: 2515-2519 | H13: 2427 | I13: 2630
D14: 2079-2090 | E14: 2564-2567 | F14: 2302-2308 | G14: 2525-2530 | H14: 2429 | I14: 2642-2643
D15: 2092-2097 | E15: 2570-2574 | F15: 2315-2325 | G15: 2533-2535 | H15: 2431 | I15: 2647
C16: 2000 | D16: 2099-2108 | E16: 2619-2621 | F16: 2327 | G16: 2539-2541 | H16: 2440 | I16: 2651
C17: 2017 | D17: 2110-2122 | E17: 2745 | F17: 2330 | G17: 2556-2557 | H17: 2443 | I17: 2710
C18: 2127 | D18: 2125-2126 | E18: 2747-2750 | F18: 2333 | G18: 2563 | H18: 2445 | I18: 2720
C19: 2150 | D19: 2128 | E19: 2752-2754 | F19: 2340 | G19: 2568-2569 | H19: 2447-2448 | I19: 2731
C20: 2155 | D20: 2130-2138 | E20: 2756-2763 | F20: 2350 | G20: 2575-2577 | H20: 2454-2455 | I20: 2738-2739
D21: 2140-2148 | E21: 2765-2770 | F21: 2428 | G21: 2580 | H21: 2463-2464 | I21: 2775
D22: 2151-2154 | E22: 2773-2774 | F22: 2430 | G22: 2618 | H22: 2466 | I22: 2790
D23: 2156-2168 | E23: 2776-2780 | F23: 2444 | G23: 2640-2641 | H23: 2470 | I23: 2794
D24: 2170-2179 | E24: 2782-2785 | F24: 2446 | G24: 2650 | H24: 2482 | I24: 2850
F25: 2450 | G25: 2680 | H25: 2536-2538 | I25: 2870
F26: 2452 | G26: 2795 | H26: 2546 | I26: 2880
F27: 2456 | G27: 2800 | H27: 2548-2551
F28: 2460 | G28: 2830
A30: Victoria
H31: 3221 | I31: 3658
D32: 3012-3013 | E32: 3212-3216 | H32: 3230-3231 | I32: 3660
D33: 3015-3016 | E33: 3335 | H33: 3234 | I33: 3672
D34: 3018-3025 | E34: 3337-3338 | F34: 3026 | G34: 3755 | H34: 3249-3250 | I34: 3677
D35: 3027-3034 | E35: 3340 | F35: 3045 | G35: 3757 | H35: 3300 | I35: 3691
D36: 3036-3044 | E36: 3429 | F36: 3086 | G36: 3759 | H36: 3305 | I36: 3722
D37: 3046-3068 | E37: 3437 | F37: 3211 | G37: 3761 | H37: 3331 | I37: 3730
C38: 3000 | D38: 3070-3076 | E38: 3752 | F38: 3217-3220 | G38: 3764 | H38: 3341 | I38: 3758
C39: 3002 | D39: 3078-3079 | E39: 3754 | F39: 3222-3228 | G39: 3770 | H39: 3351 | I39: 3797
C40: 3003 | D40: 3081-3085 | E40: 3756 | F40: 3232-3233 | G40: 3775 | H40: 3357 | I40: 3799
C41: 3004 | D41: 3087-3091 | E41: 3765-3767 | F41: 3280 | G41: 3782 | H41: 3363-3364 | I41: 3814-3816
C42: 3005 | D42: 3093-3097 | E42: 3777 | F42: 3350 | G42: 3785 | H42: 3377 | I42: 3818
C43: 3006 | D43: 3099 | E43: 3781 | F43: 3352 | G43: 3789 | H43: 3400 | I43: 3823-3824
C44: 3008 | D44: 3101-3109 | E44: 3783 | F44: 3355-3356 | G44: 3812 | H44: 3427 | I44: 3842
C45: 3010 | D45: 3111 | E45: 3786-3788 | F45: 3431 | G45: 3820 | H45: 3434-3435 | I45: 3850
C46: 3011 | D46: 3113-3116 | E46: 3791-3793 | F46: 3438 | G46: 3825 | H46: 3440 | I46: 3875
C47: 3122 | D47: 3121 | E47: 3795-3796 | F47: 3500 | G47: 3840 | H47: 3442 | I47: 3880
C48: 3128 | D48: 3123-3127 | E48: 3802-3810 | F48: 3550-3551 | G48: 3844 | H48: 3444 | I48: 3909
C49: 3141 | D49: 3129-3140 | E49: 3910 | F49: 3555-3556 | G49: 3911-3912 | H49: 3450-3451 | I49: 3915-3916
C50: 3145 | D50: 3142-3144 | E50: 3913 | F50: 3564 | G50: 3920 | H50: 3460-3461 | I50: 3918-3919
D51: 3146-3156 | E51: 3926-3927 | F51: 3630-3631 | G51: 3928 | H51: 3465 | I51: 3922
D52: 3158-3163 | E52: 3929-3931 | F52: 3690 | G52: 3933 | H52: 3501 | I52: 3925
D53: 3165-3175 | E53: 3934 | F53: 3750-3751 | G53: 3995 | H53: 3585 | I53: 3953
D54: 3177-3202 | E54: 3936-3944 | F54: 3753 | H54: 3616 | I54: 3980-3981
D55: 3204-3207 | E55: 3975-3978 | H55: 3620 | I55: 3984
H56: 3629 | I56: 3996
H57: 3636
A59: Australian Capital Territory | F59: 2609
D60: 2600-2607 | E60: 2900
D61: 2611-2612 | E61: 2902-2906
D62: 2614-2615 | E62: 2911-2914
D63: 2617
A65: Queensland
F66: 4072 | G66: 4572-4573 | H66: 4029 | I66: 4710
F67: 4111 | G67: 4575 | H67: 4183 | I67: 4737
D68: 4000 | E68: 4151-4161 | F68: 4207 | G68: 4655 | H68: 4270 | I68: 4751
D69: 4005-4014 | E69: 4163-4165 | F69: 4209-4221 | G69: 4670 | H69: 4311 | I69: 4753
D70: 4017-4022 | E70: 4169-4174 | F70: 4223-4229 | G70: 4680 | H70: 4341 | I70: 4800
D71: 4030-4032 | E71: 4178-4179 | F71: 4271-4272 | G71: 4700-4701 | H71: 4343 | I71: 4802
D72: 4034-4037 | E72: 4205 | F72: 4280 | G72: 4703 | H72: 4356 | I72: 4805
D73: 4051 | E73: 4208 | F73: 4285 | G73: 4711 | H73: 4401 | I73: 4807-4808
D74: 4053-4055 | E74: 4300-4301 | F74: 4350 | G74: 4720 | H74: 4405 | I74: 4816
D75: 4059-4061 | E75: 4303-4306 | F75: 4352 | G75: 4740 | H75: 4515 | I75: 4819-4821
D76: 4064-4070 | E76: 4500-4508 | F76: 4370 | G76: 4750 | H76: 4554 | I76: 4823
D77: 4073-4078 | E77: 4510-4512 | F77: 4509 | G77: 4810-4812 | H77: 4568 | I77: 4825
D78: 4101-4110 | E78: 4516 | F78: 4514 | G78: 4814-4815 | H78: 4610 | I78: 4850
D79: 4112-4125 | E79: 4518-4520 | F79: 4517 | G79: 4817-4818 | H79: 4615 | I79: 4860
D80: 4127-4133 | F80: 4521 | G80: 4865 | H80: 4650 | I80: 4880-4881
F81: 4550-4553 | G81: 4868-4870 | H81: 4659 | I81: 4883
F82: 4555-4567 | G82: 4877-4879 | H82: 4702
F83: 4570
A85: South Australia
D86: 5000 | E86: 5112-5116 | F86: 5106 | G86: 5160 | H86: 5201-5204 | I86: 5360
D87: 5006-5025 | E87: 5118 | F87: 5111 | G87: 5211 | H87: 5212-5214 | I87: 5453
D88: 5031-5035 | E88: 5121 | F88: 5117 | G88: 5231-5234 | H88: 5255 | I88: 5540
D89: 5037-5052 | E89: 5125-5127 | F89: 5120 | G89: 5240-5245 | H89: 5280 | I89: 5554
D90: 5061-5070 | E90: 5136 | F90: 5131-5134 | G90: 5250-5253 | H90: 5291 | I90: 5556
D91: 5072-5076 | E91: 5140 | F91: 5137-5139 | G91: 5290 | H91: 5333 | I91: 5558
D92: 5081-5098 | E92: 5152-5159 | F92: 5141-5142 | G92: 5355 | H92: 5341 | I92: 5600
D93: 5107-5110 | E93: 5161-5174 | F93: 5144 | G93: 5501 | H93: 5343 | I93: 5606-5609
F94: 5150-5151 | H94: 5345 | I94: 5700
H95: 5350-5354 | I95: 5719
A97: Western Australia
D98: 6000 | E98: 6107-6112 | F98: 6032-6033 | G98: 6181 | H98: 6067-6068 | I98: 6290
D99: 6003-6012 | E99: 6121-6122 | F99: 6041-6044 | G99: 6230 | H99: 6126 | I99: 6333
D100: 6014-6031 | E100: 6147-6160 | F100: 6074 | G100: 6232-6233 | H100: 6207 | I100: 6401
D101: 6034-6038 | E101: 6162-6164 | F101: 6078-6079 | G101: 6280-6281 | H101: 6213-6214 | I101: 6430
D102: 6050-6066 | E102: 6166-6176 | F102: 6081-6084 | G102: 6285 | H102: 6225 | I102: 6432
D103: 6069-6073 | E103: 6180 | F103: 6090 | G103: 6330 | H103: 6229 | I103: 6713-6714
D104: 6076-6077 | E104: 6208-6211 | F104: 6106 | G104: 6450 | H104: 6282 | I104: 6721
D105: 6100-6105 | F105: 6123-6125 | G105: 6530 | H105: 6284 | I105: 6726
F106: 6165 | G106: 6725
A108: Northern Territory | C108: 800
D109: 810 | E109: 828-830 | F109: 835-836 | H109: 822
D110: 812 | E110: 832 | F110: 870 | H110: 850
D111: 820
A113: Tasmania
D114: 7000 | E114: 7021 | F114: 7012 | G114: 7248-7250 | H114: 7020 | I114: 7300-7301
D115: 7004-7005 | E115: 7025 | F115: 7016 | G115: 7277 | H115: 7022 | I115: 7316
D116: 7007-7011 | E116: 7050 | F116: 7030 | G116: 7290 | H116: 7109 | I116: 7320
D117: 7015 | E117: 7052-7054 | F117: 7055 | G117: 7307 | H117: 7258 | I117: 7325
D118: 7017-7019 | E118: 7170-7172 | F118: 7140 | G118: 7310
F119: 7173 | G119: 7315
B122: *Unclassified - refer to distribution partner
B123: *Not Acceptable postcode 3308,4184,6701
